Publisher Label,Publisher URI,"Supplier ID","Supplier","Invoice No.","Amount £","Purpose","Transaction Number","Payment Date","Organisational Unit","Cost Centre(T)","Internal Category Number"
"Wolverhampton City Council","http://opendatacommunities.org/id/metropolitan-district-council/wolverhampton","717704","St Martins Multi Academy T/A Grove Academy","P19123620181119","600.00","Grant Payments to Individuals","190530594","21/11/2018","Children and young people in care","Pupil Premium","R6402"
"Wolverhampton City Council","http://opendatacommunities.org/id/metropolitan-district-council/wolverhampton","717704","St Martins Multi Academy T/A Grove Academy","P19123620181119","600.00","Grant Payments to Individuals","190530594","21/11/2018","Children and young people in care","Pupil Premium","R6402"
"Wolverhampton City Council","http://opendatacommunities.org/id/metropolitan-district-council/wolverhampton","717743","Sanderson Funerals","HMCC031","643.96","Hire of Vehicles","130235825","29/11/2018","Public Service Reform","Coroners Service","R3200"
"Wolverhampton City Council","http://opendatacommunities.org/id/metropolitan-district-council/wolverhampton","717743","Sanderson Funerals","HMCH031","253.28","Hire of Vehicles","130235826","29/11/2018","Public Service Reform","Coroners Service","R3200"
"Wolverhampton City Council","http://opendatacommunities.org/id/metropolitan-district-council/wolverhampton","717795","Bramble Hub Limited","8205","570.00","Training Expenses","130228225","29/11/2018","Public Service Reform","Centralised Training","R1650"
"Wolverhampton City Council","http://opendatacommunities.org/id/metropolitan-district-council/wolverhampton","717845","Philip Kolvin QC","142042","1,000.00","Services - Professional Fees","130233575","29/11/2018","Licensing","Private Hire Drivers","R4400"
"Wolverhampton City Council","http://opendatacommunities.org/id/metropolitan-district-council/wolverhampton","717845","Philip Kolvin QC","142041","700.00","Services - Professional Fees","130231936","02/11/2018","Licensing","Private Hire Vehicles","R4400"
"Wolverhampton City Council","http://opendatacommunities.org/id/metropolitan-district-council/wolverhampton","717851","Norton Hill School","P19223320181126","600.00","Grant Payments to Individuals","190534104","29/11/2018","Children and young people in care","Pupil Premium","R6402"
"Wolverhampton City Council","http://opendatacommunities.org/id/metropolitan-district-council/wolverhampton","717851","Norton Hill School","P19223320181126","600.00","Grant Payments to Individuals","190534104","29/11/2018","Children and young people in care","Pupil Premium","R6402"
"Wolverhampton City Council","http://opendatacommunities.org/id/metropolitan-district-council/wolverhampton","717852","Wylde Green Primary School","P19223320181126","600.00","Grant Payments to Individuals","190534104","29/11/2018","Children and young people in care","Pupil Premium","R6402"
"Wolverhampton City Council","http://opendatacommunities.org/id/metropolitan-district-council/wolverhampton","717852","Wylde Green Primary School","P19223320181126","600.00","Grant Payments to Individuals","190534104","29/11/2018","Children and young people in care","Pupil Premium","R6402"
"Wolverhampton City Council","http://opendatacommunities.org/id/metropolitan-district-council/wolverhampton","717855","Wood Green Junior School","P19223320181126","600.00","Grant Payments to Individuals","190534104","29/11/2018","Children and young people in care","Pupil Premium","R6402"
"Wolverhampton City Council","http://opendatacommunities.org/id/metropolitan-district-council/wolverhampton","717855","Wood Green Junior School","P19223320181126","600.00","Grant Payments to Individuals","190534104","29/11/2018","Children and young people in care","Pupil Premium","R6402"
"Wolverhampton City Council","http://opendatacommunities.org/id/metropolitan-district-council/wolverhampton","717863","Donna Widdows","1","340.00","TPP - Child Care provided for client","130231616","02/11/2018","Adult Education","Discretionary Fund","R5034"
"Wolverhampton City Council","http://opendatacommunities.org/id/metropolitan-district-council/wolverhampton","717863","Donna Widdows","NEF Autumn 2018 Nov 18","178.50","TPP - Private Nursery Education Funding","190529919","21/11/2018","Early Years","Early Years Universal Entitlement for 3 and 4 Year Olds","R5035"
"Wolverhampton City Council","http://opendatacommunities.org/id/metropolitan-district-council/wolverhampton","717863","Donna Widdows","2","595.00","TPP - Child Care provided for client","130233924","29/11/2018","Adult Education","Discretionary Fund","R5034"
"Wolverhampton City Council","http://opendatacommunities.org/id/metropolitan-district-council/wolverhampton","717867","Battlefield Landscapes Ltd","INV-2005","2,800.00","Materials","130232445","14/11/2018","Environmental Maintenance","Ground Maintenance East","R4007"
"Wolverhampton City Council","http://opendatacommunities.org/id/metropolitan-district-council/wolverhampton","717867","Battlefield Landscapes Ltd","INV-2006","9,305.84","Materials","130232446","14/11/2018","Environmental Maintenance","Ground Maintenance East","R4007"
"Wolverhampton City Council","http://opendatacommunities.org/id/metropolitan-district-council/wolverhampton","717887","Hamstead Hall Academy","P19123620181119","600.00","Grant Payments to Individuals","190530594","21/11/2018","Children and young people in care","Pupil Premium","R6402"
"Wolverhampton City Council","http://opendatacommunities.org/id/metropolitan-district-council/wolverhampton","717890","Preventx Limited","PY380758","408.00","TPP - Public Health Contracts","130230529","29/11/2018","Starting and Developing Well","Sexual Health","R5060"
"Wolverhampton City Council","http://opendatacommunities.org/id/metropolitan-district-council/wolverhampton","717933","Derby Comm. Health Ser. NHS Found. Trust","11899078 OOA May 18","106.30","TPP - Public Health Contracts","190524453","02/11/2018","Starting and Developing Well","Sexual Health","R5060"
"Wolverhampton City Council","http://opendatacommunities.org/id/metropolitan-district-council/wolverhampton","717995","Barnardo Services Limited","242002799","73,750.00","TPP - Social Care Support Services","130229139","30/11/2018","Specialist Support","Therapeutic Support Team","R5501"
"Wolverhampton City Council","http://opendatacommunities.org/id/metropolitan-district-council/wolverhampton","717995","Barnardo Services Limited","242002847","2,500.00","TPP - Short Breaks","130232921","21/11/2018","Children and young people in care","Short Breaks","R5500"
"Wolverhampton City Council","http://opendatacommunities.org/id/metropolitan-district-council/wolverhampton","717999","Mark Finnis Training & Consultancy Ltd","RPMFTC544","3,000.00","Training Expenses","130234983","21/11/2018","Public Service Reform","Workforce Development","R1650"
"Wolverhampton City Council","http://opendatacommunities.org/id/metropolitan-district-council/wolverhampton","717999","Mark Finnis Training & Consultancy Ltd","RPMFTC544","512.25","Training Expenses","130234983","21/11/2018","Public Service Reform","Centralised Training","R1650"
"Wolverhampton City Council","http://opendatacommunities.org/id/metropolitan-district-council/wolverhampton","718006","Equib Planning Ltd","EQR0521","5,760.00","Services - Professional Fees","130233814","29/11/2018","Central Corporate Budgets","Miscellaneous Corporate Costs","R4400"
"Wolverhampton City Council","http://opendatacommunities.org/id/metropolitan-district-council/wolverhampton","718047","Power Data Associates Limited","WOL1802","2,688.00","Materials","130233576","29/11/2018","Street Lighting","Street Lighting Energy","R4007"
"Wolverhampton City Council","http://opendatacommunities.org/id/metropolitan-district-council/wolverhampton","718086","St Edmund�s Catholic Academy","P19223320181126","600.00","Grant Payments to Individuals","190534104","29/11/2018","Children and young people in care","Pupil Premium","R6402"
"Wolverhampton City Council","http://opendatacommunities.org/id/metropolitan-district-council/wolverhampton","718086","St Edmund�s Catholic Academy","P19223320181126","600.00","Grant Payments to Individuals","190534104","29/11/2018","Children and young people in care","Pupil Premium","R6402"
"Wolverhampton City Council","http://opendatacommunities.org/id/metropolitan-district-council/wolverhampton","718086","St Edmund�s Catholic Academy","P19223320181126","600.00","Grant Payments to Individuals","190534104","29/11/2018","Children and young people in care","Pupil Premium","R6402"
"Wolverhampton City Council","http://opendatacommunities.org/id/metropolitan-district-council/wolverhampton","718086","St Edmund�s Catholic Academy","P19223320181126","600.00","Grant Payments to Individuals","190534104","29/11/2018","Children and young people in care","Pupil Premium","R6402"
"Wolverhampton City Council","http://opendatacommunities.org/id/metropolitan-district-council/wolverhampton","718086","St Edmund�s Catholic Academy","P19223320181126","600.00","Grant Payments to Individuals","190534104","29/11/2018","Children and young people in care","Pupil Premium","R6402"
"Wolverhampton City Council","http://opendatacommunities.org/id/metropolitan-district-council/wolverhampton","718137","Melanie Tomlinson","GHG09","280.00","Services - Professional Fees","130233271","21/11/2018","Visitor Economy","Learning Programme -  ACE NPO WAG","R4400"
"Wolverhampton City Council","http://opendatacommunities.org/id/metropolitan-district-council/wolverhampton","718145","Clear Law LLP","PI/305636.001-Disburs","690.00","Services - Professional Fees","190526770","14/11/2018","Housing Revenue Account","HRA Repairs & Maintenance - General","R4400"
"Wolverhampton City Council","http://opendatacommunities.org/id/metropolitan-district-council/wolverhampton","718145","Clear Law LLP","PI/305636.001-Legal","1,841.67","Services - Professional Fees","190526771","14/11/2018","Housing Revenue Account","HRA Repairs & Maintenance - General","R4400"
"Wolverhampton City Council","http://opendatacommunities.org/id/metropolitan-district-council/wolverhampton","718145","Clear Law LLP","PI/305636.001-Damages","1,600.00","Services - Professional Fees","190526769","14/11/2018","Housing Revenue Account","HRA Repairs & Maintenance - General","R4400"
"Wolverhampton City Council","http://opendatacommunities.org/id/metropolitan-district-council/wolverhampton","718156","Recognising Excellence Ltd","7235","1,150.00","Services - Professional Fees","130231617","07/11/2018","Community Financial Support","Macmillan Welfare Rights Service","R4400"
"Wolverhampton City Council","http://opendatacommunities.org/id/metropolitan-district-council/wolverhampton","718215","Straight Manufacturing Ltd","0000040878","313.05","Services - Fees and Charges","130234389","16/11/2018","Waste and Recycling Service","Waste Collection and Recycling Service - General","R4401"
"Wolverhampton City Council","http://opendatacommunities.org/id/metropolitan-district-council/wolverhampton","718242","Talbots Law","70170","559.90","Services - Professional Fees","130233925","16/11/2018","Children and young people in care","Adoption and Residence Team & Allowances","R4400"
"Wolverhampton City Council","http://opendatacommunities.org/id/metropolitan-district-council/wolverhampton","718288","Recognition Express Limited","REH56190","99.75","Clothing / Uniforms","130236466","30/11/2018","School Planning & Resources","Technical Support","R4201"
"Wolverhampton City Council","http://opendatacommunities.org/id/metropolitan-district-council/wolverhampton","718288","Recognition Express Limited","REH56190","330.00","Clothing / Uniforms","130236466","30/11/2018","School Planning & Resources","Technical Support","R4201"
"Wolverhampton City Council","http://opendatacommunities.org/id/metropolitan-district-council/wolverhampton","718288","Recognition Express Limited","REH56190","119.60","Clothing / Uniforms","130236466","30/11/2018","School Planning & Resources","Technical Support","R4201"
"Wolverhampton City Council","http://opendatacommunities.org/id/metropolitan-district-council/wolverhampton","718291","Interserve Site Services","PI249431","500.00","Insurance - General","130232038","14/11/2018","Catering","Meals on Wheels","R4962"
"Wolverhampton City Council","http://opendatacommunities.org/id/metropolitan-district-council/wolverhampton","718291","Interserve Site Services","PI249431","500.17","Insurance - General","130232038","14/11/2018","Audit Services","Motor Vehicles","R4962"
"Wolverhampton City Council","http://opendatacommunities.org/id/metropolitan-district-council/wolverhampton","718304","St Johns B&B - Tunbridge Property LTD","261","500.00","No Recourse to Public Funds","130231216","07/11/2018","Strengthening Families","CP Area 8 - Children�s Village","R6314"
"Wolverhampton City Council","http://opendatacommunities.org/id/metropolitan-district-council/wolverhampton","718304","St Johns B&B - Tunbridge Property LTD","275","700.00","No Recourse to Public Funds","130231217","07/11/2018","Strengthening Families","CP Area 8 - Children�s Village","R6314"
"Wolverhampton City Council","http://opendatacommunities.org/id/metropolitan-district-council/wolverhampton","718321","London Hire Ltd","INV00039015","966.00","Hire of Vehicles","190532958","23/11/2018","Fleet Services","Fleet Management","R3200"
"Wolverhampton City Council","http://opendatacommunities.org/id/metropolitan-district-council/wolverhampton","718321","London Hire Ltd","INV00039012","345.00","Hire of Vehicles","190532955","23/11/2018","Fleet Services","Fleet Management","R3200"
"Wolverhampton City Council","http://opendatacommunities.org/id/metropolitan-district-council/wolverhampton","718321","London Hire Ltd","INV00039013","345.00","Hire of Vehicles","190532956","23/11/2018","Fleet Services","Fleet Management","R3200"
"Wolverhampton City Council","http://opendatacommunities.org/id/metropolitan-district-council/wolverhampton","718321","London Hire Ltd","INV00039016","966.00","Hire of Vehicles","190532959","23/11/2018","Fleet Services","Fleet Management","R3200"
"Wolverhampton City Council","http://opendatacommunities.org/id/metropolitan-district-council/wolverhampton","718321","London Hire Ltd","INV00039014","966.00","Hire of Vehicles","190532957","23/11/2018","Fleet Services","Fleet Management","R3200"
"Wolverhampton City Council","http://opendatacommunities.org/id/metropolitan-district-council/wolverhampton","718331","Coram Community Campus","AAD/2840/527","400.00","Services - Professional Fees","130233926","07/11/2018","Children and young people in care","Adoption and Residence Team & Allowances","R4400"
"Wolverhampton City Council","http://opendatacommunities.org/id/metropolitan-district-council/wolverhampton","718331","Coram Community Campus","AAD/2840/526","900.00","Services - Professional Fees","130233272","07/11/2018","Children and young people in care","Adoption and Residence Team & Allowances","R4400"
"Wolverhampton City Council","http://opendatacommunities.org/id/metropolitan-district-council/wolverhampton","718349","Dr Shaheen Yousaf Chaudhry","DOLS 0818-A","9,061.20","Services - DoLS Doctors Fees","130231540","07/11/2018","Safeguarding","MCA General","R4416"
"Wolverhampton City Council","http://opendatacommunities.org/id/metropolitan-district-council/wolverhampton","718349","Dr Shaheen Yousaf Chaudhry","DOLS 0818-B","2,944.20","Services - DoLS Doctors Fees","130231539","07/11/2018","Safeguarding","MCA General","R4416"
"Wolverhampton City Council","http://opendatacommunities.org/id/metropolitan-district-council/wolverhampton","718349","Dr Shaheen Yousaf Chaudhry","DOLS1018-A","10,039.20","Services - DoLS Doctors Fees","130232689","16/11/2018","Safeguarding","MCA General","R4416"
"Wolverhampton City Council","http://opendatacommunities.org/id/metropolitan-district-council/wolverhampton","718349","Dr Shaheen Yousaf Chaudhry","DOLS 0818-C","3,791.80","Services - DoLS Doctors Fees","130231538","14/11/2018","Safeguarding","MCA General","R4416"
"Wolverhampton City Council","http://opendatacommunities.org/id/metropolitan-district-council/wolverhampton","718366","West Midlands Combined Authority","654029","9,736.00","Payroll Control Account - Travel Card Scheme","130231938","09/11/2018","-","General Fund Balance Sheet","B3350"
"Wolverhampton City Council","http://opendatacommunities.org/id/metropolitan-district-council/wolverhampton","718366","West Midlands Combined Authority","654030","11,872.00","Payroll Control Account - Travel Card Scheme","130231939","09/11/2018","-","General Fund Balance Sheet","B3350"
"Wolverhampton City Council","http://opendatacommunities.org/id/metropolitan-district-council/wolverhampton","718366","West Midlands Combined Authority","654006","430.80","Payroll Control Account - Travel Card Scheme","130231218","09/11/2018","-","General Fund Balance Sheet","B3350"
"Wolverhampton City Council","http://opendatacommunities.org/id/metropolitan-district-council/wolverhampton","718366","West Midlands Combined Authority","654028","12,604.00","Payroll Control Account - Travel Card Scheme","130231937","09/11/2018","-","General Fund Balance Sheet","B3350"
"Wolverhampton City Council","http://opendatacommunities.org/id/metropolitan-district-council/wolverhampton","718366","West Midlands Combined Authority","653328","-19,660.00","Construction and Conversion","130226393","09/11/2018","-","GF - Accessing Growth Fund","C1100"
"Wolverhampton City Council","http://opendatacommunities.org/id/metropolitan-district-council/wolverhampton","718367","Certas Energy UK","1467161","450.00","Equipment - Purchase","190525577","09/11/2018","Fleet Services","Fleet Management","R4000"
"Wolverhampton City Council","http://opendatacommunities.org/id/metropolitan-district-council/wolverhampton","718367","Certas Energy UK","1504611","1,243.80","Heating Oil","130234867","30/11/2018","Highways Maintenance","Patching","R2102"
"Wolverhampton City Council","http://opendatacommunities.org/id/metropolitan-district-council/wolverhampton","718367","Certas Energy UK","1467160","443.75","Equipment - Purchase","190525576","09/11/2018","Fleet Services","Fleet Management","R4000"
"Wolverhampton City Council","http://opendatacommunities.org/id/metropolitan-district-council/wolverhampton","718367","Certas Energy UK","1429248","61.20","Equipment - Purchase","190525997","09/11/2018","Fleet Services","Fleet Management","R4000"
"Wolverhampton City Council","http://opendatacommunities.org/id/metropolitan-district-council/wolverhampton","718367","Certas Energy UK","1392296","1,269.56","Heating Oil","130231781","07/11/2018","Highways Maintenance","Patching","R2102"
"Wolverhampton City Council","http://opendatacommunities.org/id/metropolitan-district-council/wolverhampton","718371","Stefano Nuvoloni","623","1,000.00","Services - Professional Fees","130232039","30/11/2018","Legal Services","Centralised External Legal Costs","R4400"
"Wolverhampton City Council","http://opendatacommunities.org/id/metropolitan-district-council/wolverhampton","718376","Westbury Health Limited","DA105118LUKEHARDINGAM","123.55","Services - Professional Fees","130236314","30/11/2018","Legal Services","Centralised External Legal Costs","R4400"
"Wolverhampton City Council","http://opendatacommunities.org/id/metropolitan-district-council/wolverhampton","718376","Westbury Health Limited","DA103518NIRMALJITGILL","160.26","Services - Professional Fees","130236313","30/11/2018","Legal Services","Centralised External Legal Costs","R4400"
"Wolverhampton City Council","http://opendatacommunities.org/id/metropolitan-district-council/wolverhampton","718376","Westbury Health Limited","DA076118","164.50","Services - Professional Fees","130234516","14/11/2018","Legal Services","Centralised External Legal Costs","R4400"
"Wolverhampton City Council","http://opendatacommunities.org/id/metropolitan-district-council/wolverhampton","718376","Westbury Health Limited","DA094318SIMRAMJEER","212.77","Services - Professional Fees","130234868","21/11/2018","Legal Services","Centralised External Legal Costs","R4400"
"Wolverhampton City Council","http://opendatacommunities.org/id/metropolitan-district-council/wolverhampton","718401","Central Design Consultants Ltd","6998","590.00","External Professional Fees","130233815","14/11/2018","-","Structural works","C6002"
"Wolverhampton City Council","http://opendatacommunities.org/id/metropolitan-district-council/wolverhampton","718413","Harj Bains Estate Agents","16083248","495.00","No Recourse to Public Funds","130232040","07/11/2018","Strengthening Families","CP Area 1 - Eastfield","R6314"
"Wolverhampton City Council","http://opendatacommunities.org/id/metropolitan-district-council/wolverhampton","718416","Mark Woollett","00011","640.00","TPP - Maintenance Contractor - General","190535426","30/11/2018","Transportation","Cycling Schemes - Bikeability","R5720"
"Wolverhampton City Council","http://opendatacommunities.org/id/metropolitan-district-council/wolverhampton","718431","Helena Liberadzki","00013","125.00","TPP - Maintenance Contractor - General","190535428","30/11/2018","Transportation","Cycling Schemes - Bikeability","R5720"
"Wolverhampton City Council","http://opendatacommunities.org/id/metropolitan-district-council/wolverhampton","718433","Daniel Booth","00017","270.00","TPP - Maintenance Contractor - General","190535423","30/11/2018","Transportation","Cycling Schemes - Bikeability","R5720"
"Wolverhampton City Council","http://opendatacommunities.org/id/metropolitan-district-council/wolverhampton","718450","Furnace Mill Fishery Ltd","207","650.00","R&M - Departmental response (external)","130232160","14/11/2018","Environmental Maintenance","Parks - East Area Management","R2003"
"Wolverhampton City Council","http://opendatacommunities.org/id/metropolitan-district-council/wolverhampton","718450","Furnace Mill Fishery Ltd","209","1,200.00","R&M - Departmental response (external)","130232277","14/11/2018","Environmental Maintenance","Parks - East Area Management","R2003"
"Wolverhampton City Council","http://opendatacommunities.org/id/metropolitan-district-council/wolverhampton","718450","Furnace Mill Fishery Ltd","206","280.00","R&M - Departmental response (external)","130232159","14/11/2018","Environmental Maintenance","Parks - East Area Management","R2003"
"Wolverhampton City Council","http://opendatacommunities.org/id/metropolitan-district-council/wolverhampton","718450","Furnace Mill Fishery Ltd","210","780.00","R&M - Departmental planned (external)","130232278","14/11/2018","Environmental Maintenance","Parks / Open Spaces - Repairs & Maintenance","R2001"
"Wolverhampton City Council","http://opendatacommunities.org/id/metropolitan-district-council/wolverhampton","718450","Furnace Mill Fishery Ltd","208","363.40","R&M - Departmental response (external)","130232161","14/11/2018","Environmental Maintenance","Parks - East Area Management","R2003"
"Wolverhampton City Council","http://opendatacommunities.org/id/metropolitan-district-council/wolverhampton","718490","NCH CONSULTANCY SERVICES LTD","NCHCS181012CWC","2,400.00","Services - Consultants","130231782","09/11/2018","Corporate Asset Management","Strategic Asset Management Team","R4404"
"Wolverhampton City Council","http://opendatacommunities.org/id/metropolitan-district-council/wolverhampton","718497","11KBW Limited","103383","750.00","Training Expenses","130232449","07/11/2018","Public Service Reform","Workforce Development","R1650"
"Wolverhampton City Council","http://opendatacommunities.org/id/metropolitan-district-council/wolverhampton","718497","11KBW Limited","103383","70.00","Training Expenses","130232449","07/11/2018","Public Service Reform","Workforce Development","R1650"
"Wolverhampton City Council","http://opendatacommunities.org/id/metropolitan-district-council/wolverhampton","718503","Ove Arup & Partners Ltd","1026293","11,000.00","External Professional Fees","130235450","21/11/2018","-","GF - LGF Feasibility","C6002"
"Wolverhampton City Council","http://opendatacommunities.org/id/metropolitan-district-council/wolverhampton","718613","HOPE SERVICES","WOLSOC102018","128.00","Section 17","130234392","21/11/2018","Strengthening Families","CP Area 4- Bingley","R6403"
"Wolverhampton City Council","http://opendatacommunities.org/id/metropolitan-district-council/wolverhampton","718613","HOPE SERVICES","WOLSOC092018","128.00","Section 17","130234391","21/11/2018","Strengthening Families","CP Area 4- Bingley","R6403"
"Wolverhampton City Council","http://opendatacommunities.org/id/metropolitan-district-council/wolverhampton","718613","HOPE SERVICES","WOLSOC07082018","96.00","Section 17","130234390","21/11/2018","Strengthening Families","CP Area 4- Bingley","R6403"
"Wolverhampton City Council","http://opendatacommunities.org/id/metropolitan-district-council/wolverhampton","718631","Midland Fuel Oil Supplies Ltd","623228","795.20","Heating Oil","190534609","29/11/2018","Corporate Asset Management","Central Utilities to Recharge","R2102"
"Wolverhampton City Council","http://opendatacommunities.org/id/metropolitan-district-council/wolverhampton","718631","Midland Fuel Oil Supplies Ltd","619626c","-714.50","Heating Oil","190528740","16/11/2018","Corporate Asset Management","Central Utilities to Recharge","R2102"
"Wolverhampton City Council","http://opendatacommunities.org/id/metropolitan-district-council/wolverhampton","718631","Midland Fuel Oil Supplies Ltd","619626Adj","714.50","Heating Oil","190528741","16/11/2018","Corporate Asset Management","Central Utilities to Recharge","R2102"
"Wolverhampton City Council","http://opendatacommunities.org/id/metropolitan-district-council/wolverhampton","718631","Midland Fuel Oil Supplies Ltd","622121","469.38","Heating Oil","190528739","16/11/2018","Corporate Asset Management","Central Utilities to Recharge","R2102"
"Wolverhampton City Council","http://opendatacommunities.org/id/metropolitan-district-council/wolverhampton","718677","NJW Limited","4318","30,000.00","Computing - Purchase of Software","130232041","14/11/2018","Corporate Asset Management","Assets Service Transformation Programme","R4531"
"Wolverhampton City Council","http://opendatacommunities.org/id/metropolitan-district-council/wolverhampton","718680","Gails Blinds Ltd","120918","933.00","Services - Consultants","130233816","14/11/2018","Learning Disability Provider","Learning Disabilities Management","R4404"
"Wolverhampton City Council","http://opendatacommunities.org/id/metropolitan-district-council/wolverhampton","718686","Primary Talent international","WolvesBluetones","2,500.00","Services - Professional Fees","130231971","09/11/2018","Visitor Economy","The Little Civic","R4400"
"Wolverhampton City Council","http://opendatacommunities.org/id/metropolitan-district-council/wolverhampton","718709","Hilton Studio","62987","1,106.52","Marketing \ Non-staff advertising","130234393","29/11/2018","Leisure Services","Aldersley Leisure Village","R4317"
"Wolverhampton City Council","http://opendatacommunities.org/id/metropolitan-district-council/wolverhampton","718729","National Assoc of Virtual Sch Heads","INV-0083","500.00","Subscriptions","130231351","07/11/2018","Children and young people in care","Pupil Premium","R4701"
"Wolverhampton City Council","http://opendatacommunities.org/id/metropolitan-district-council/wolverhampton","718753","eduFOCUS Limited","EDU18187","4,999.00","Computing - Purchase of Software","130233927","07/11/2018","Audit Services","Health & Safety","R4531"
"Wolverhampton City Council","http://opendatacommunities.org/id/metropolitan-district-council/wolverhampton","718754","Liddell Electrical Distributors","8054813-00","77.00","Materials","130233415","29/11/2018","Street Lighting","Street Lighting Maintenance","R4007"
"Wolverhampton City Council","http://opendatacommunities.org/id/metropolitan-district-council/wolverhampton","718808","DMF Music Ltd","2272","4,000.00","Services - Professional Fees","130234636","14/11/2018","Visitor Economy","The Little Civic","R4400"
"Wolverhampton City Council","http://opendatacommunities.org/id/metropolitan-district-council/wolverhampton","718837","East Park Academy","P19123620181119","600.00","Grant Payments to Individuals","190530594","21/11/2018","Children and young people in care","Pupil Premium","R6402"
"Wolverhampton City Council","http://opendatacommunities.org/id/metropolitan-district-council/wolverhampton","718838","Manor Multi Academy Trust T/A Hill Avenue Academy","P19123620181119","600.00","Grant Payments to Individuals","190530594","21/11/2018","Children and young people in care","Pupil Premium","R6402"
"Wolverhampton City Council","http://opendatacommunities.org/id/metropolitan-district-council/wolverhampton","718871","Midland Garage Equipment Ltd","1593","90.00","Services - Professional Fees","190535722","30/11/2018","Fleet Services","Fleet Management","R4400"
"Wolverhampton City Council","http://opendatacommunities.org/id/metropolitan-district-council/wolverhampton","718871","Midland Garage Equipment Ltd","1593","45.00","Services - Professional Fees","190535722","30/11/2018","Fleet Services","Fleet Management","R4400"
"Wolverhampton City Council","http://opendatacommunities.org/id/metropolitan-district-council/wolverhampton","718871","Midland Garage Equipment Ltd","1593","6.95","Services - Professional Fees","190535722","30/11/2018","Fleet Services","Fleet Management","R4400"
"Wolverhampton City Council","http://opendatacommunities.org/id/metropolitan-district-council/wolverhampton","718894","Sam Mace","27032116","225.00","Services - Professional Fees","130234044","30/11/2018","Visitor Economy","Education And Access","R4400"
"Wolverhampton City Council","http://opendatacommunities.org/id/metropolitan-district-council/wolverhampton","718901","iGene London Ltd","IGE/0477","2,850.00","Services - Professional Fees","130230736","23/11/2018","Public Service Reform","Coroners Service","R4400"
"Wolverhampton City Council","http://opendatacommunities.org/id/metropolitan-district-council/wolverhampton","718928","Perryfields High School","P19223320181126","600.00","Grant Payments to Individuals","190534104","29/11/2018","Children and young people in care","Pupil Premium","R6402"
"Wolverhampton City Council","http://opendatacommunities.org/id/metropolitan-district-council/wolverhampton","718928","Perryfields High School","P19223320181126","600.00","Grant Payments to Individuals","190534104","29/11/2018","Children and young people in care","Pupil Premium","R6402"
"Wolverhampton City Council","http://opendatacommunities.org/id/metropolitan-district-council/wolverhampton","718968","CIPFA NEWCO LIMITED","INV-0039","55,700.00","Services - Professional Fees","130233819","29/11/2018","Digital Transformation Programme","Digital Transformation Programme (Recharge to Capital)","R4400"
"Wolverhampton City Council","http://opendatacommunities.org/id/metropolitan-district-council/wolverhampton","718968","CIPFA NEWCO LIMITED","INV-0036","1,990.00","Services - Professional Fees","130233817","29/11/2018","Procurement Services","Corporate Procurement Unit","R4400"
"Wolverhampton City Council","http://opendatacommunities.org/id/metropolitan-district-council/wolverhampton","718968","CIPFA NEWCO LIMITED","INV-0028","74,050.00","Services - Professional Fees","130231219","14/11/2018","Digital Transformation Programme","Digital Transformation Programme (Recharge to Capital)","R4400"
"Wolverhampton City Council","http://opendatacommunities.org/id/metropolitan-district-council/wolverhampton","719006","Dynniq UK Ltd","18005639UI","15,595.63","Plant, Equipment, Machinery & Computer Hardware","130233124","21/11/2018","-","GF - Maintenance of unclassified roads","C3000"
"Wolverhampton City Council","http://opendatacommunities.org/id/metropolitan-district-council/wolverhampton","719006","Dynniq UK Ltd","18005494UI","1,262.51","Equipment - R & M","130232692","14/11/2018","Operation & Maintenance of Existing Network","Walsall Recovery Costs","R4003"
"Wolverhampton City Council","http://opendatacommunities.org/id/metropolitan-district-council/wolverhampton","719006","Dynniq UK Ltd","18005493UI","1,477.87","Equipment - R & M","130232691","14/11/2018","Operation & Maintenance of Existing Network","Walsall Recovery Costs","R4003"
"Wolverhampton City Council","http://opendatacommunities.org/id/metropolitan-district-council/wolverhampton","719006","Dynniq UK Ltd","18005495UI","2,579.67","Equipment - R & M","130232693","14/11/2018","Operation & Maintenance of Existing Network","Traffic Signals","R4003"
"Wolverhampton City Council","http://opendatacommunities.org/id/metropolitan-district-council/wolverhampton","719006","Dynniq UK Ltd","18005638UI","249,877.79","Plant, Equipment, Machinery & Computer Hardware","130233123","21/11/2018","-","Integrated Transport","C3000"
"Wolverhampton City Council","http://opendatacommunities.org/id/metropolitan-district-council/wolverhampton","719006","Dynniq UK Ltd","18005640UI","22,263.56","Equipment - R & M","130233125","21/11/2018","Highways Maintenance","Fencing & Guard Rails","R4003"
"Wolverhampton City Council","http://opendatacommunities.org/id/metropolitan-district-council/wolverhampton","719006","Dynniq UK Ltd","18005641UI","56,439.74","Equipment - R & M","130233126","21/11/2018","Street Lighting","Street Lighting Maintenance","R4003"
"Wolverhampton City Council","http://opendatacommunities.org/id/metropolitan-district-council/wolverhampton","719006","Dynniq UK Ltd","18005492UI","3,216.06","Equipment - R & M","130232690","14/11/2018","Operation & Maintenance of Existing Network","Traffic Signals","R4003"
"Wolverhampton City Council","http://opendatacommunities.org/id/metropolitan-district-council/wolverhampton","719006","Dynniq UK Ltd","18005491UI","4,097.30","Equipment - R & M","130232450","14/11/2018","Operation & Maintenance of Existing Network","Traffic Signals","R4003"
"Wolverhampton City Council","http://opendatacommunities.org/id/metropolitan-district-council/wolverhampton","719006","Dynniq UK Ltd","18005873UI","1,314.01","Equipment - R & M","130233825","30/11/2018","Operation & Maintenance of Existing Network","Walsall Recovery Costs","R4003"
"Wolverhampton City Council","http://opendatacommunities.org/id/metropolitan-district-council/wolverhampton","719006","Dynniq UK Ltd","18005870UI","476.91","Equipment - R & M","130233822","29/11/2018","Operation & Maintenance of Existing Network","Walsall Recovery Costs","R4003"
"Wolverhampton City Council","http://opendatacommunities.org/id/metropolitan-district-council/wolverhampton","719006","Dynniq UK Ltd","18005874UI","3,244.35","Equipment - R & M","130233826","29/11/2018","Operation & Maintenance of Existing Network","Traffic Signals","R4003"
"Wolverhampton City Council","http://opendatacommunities.org/id/metropolitan-district-council/wolverhampton","719006","Dynniq UK Ltd","18005872UI","1,943.72","Equipment - R & M","130233824","29/11/2018","Operation & Maintenance of Existing Network","Walsall Recovery Costs","R4003"
"Wolverhampton City Council","http://opendatacommunities.org/id/metropolitan-district-council/wolverhampton","719006","Dynniq UK Ltd","18005707UI","3,837.87","Equipment - R & M","130233416","30/11/2018","Operation & Maintenance of Existing Network","Traffic Signals","R4003"
"Wolverhampton City Council","http://opendatacommunities.org/id/metropolitan-district-council/wolverhampton","719006","Dynniq UK Ltd","18005708UI","1,196.28","Equipment - R & M","130233417","30/11/2018","Operation & Maintenance of Existing Network","Traffic Signals","R4003"
"Wolverhampton City Council","http://opendatacommunities.org/id/metropolitan-district-council/wolverhampton","719006","Dynniq UK Ltd","18005869UI","311.21","Equipment - R & M","130233821","29/11/2018","Operation & Maintenance of Existing Network","Traffic Signals","R4003"
"Wolverhampton City Council","http://opendatacommunities.org/id/metropolitan-district-council/wolverhampton","719006","Dynniq UK Ltd","18005868UI","418.87","Equipment - R & M","130233820","29/11/2018","Operation & Maintenance of Existing Network","Traffic Signals","R4003"
"Wolverhampton City Council","http://opendatacommunities.org/id/metropolitan-district-council/wolverhampton","719006","Dynniq UK Ltd","18005871UI","2,264.46","Equipment - R & M","130233823","29/11/2018","Operation & Maintenance of Existing Network","Walsall Recovery Costs","R4003"
"Wolverhampton City Council","http://opendatacommunities.org/id/metropolitan-district-council/wolverhampton","719006","Dynniq UK Ltd","18005405UI","6,116.64","Equipment - R & M","130231783","07/11/2018","Operation & Maintenance of Existing Network","UTC - Utilities Organisations","R4003"
"Wolverhampton City Council","http://opendatacommunities.org/id/metropolitan-district-council/wolverhampton","719024","Shaylor Group Plc","00013210","4.37","Construction and Conversion","130234045","14/11/2018","-","Black Country Growth Deal � Cultural Programme","C1100"
"Wolverhampton City Council","http://opendatacommunities.org/id/metropolitan-district-council/wolverhampton","719024","Shaylor Group Plc","00013210","4.75","Construction and Conversion","130234045","14/11/2018","-","Black Country Growth Deal � Cultural Programme","C1100"
"Wolverhampton City Council","http://opendatacommunities.org/id/metropolitan-district-council/wolverhampton","719024","Shaylor Group Plc","00013210","4,382.44","Construction and Conversion","130234045","14/11/2018","-","Black Country Growth Deal � Cultural Programme","C1100"
"Wolverhampton City Council","http://opendatacommunities.org/id/metropolitan-district-council/wolverhampton","719024","Shaylor Group Plc","00013210","283,035.56","Construction and Conversion","130234045","14/11/2018","-","Black Country Growth Deal � Cultural Programme","C1100"
"Wolverhampton City Council","http://opendatacommunities.org/id/metropolitan-district-council/wolverhampton","719031","Broadmeadow Special School","P19123620181119","600.00","Grant Payments to Individuals","190530594","21/11/2018","Children and young people in care","Pupil Premium","R6402"
"Wolverhampton City Council","http://opendatacommunities.org/id/metropolitan-district-council/wolverhampton","719046","Sarah Bradshaw","251018","500.00","Services - Professional Fees","130233022","21/11/2018","Visitor Economy","Technical Support - ACE NPO WAG","R4400"
"Wolverhampton City Council","http://opendatacommunities.org/id/metropolitan-district-council/wolverhampton","719047","ATG Contract Services Ltd","7624","2,203.60","Client Transport","130234395","21/11/2018","Special Educational Needs","Special - Transport","R3042"
"Wolverhampton City Council","http://opendatacommunities.org/id/metropolitan-district-council/wolverhampton","719047","ATG Contract Services Ltd","7641","2,093.42","Client Transport","130234396","21/11/2018","Special Educational Needs","Special - Transport","R3042"
"Wolverhampton City Council","http://opendatacommunities.org/id/metropolitan-district-council/wolverhampton","719047","ATG Contract Services Ltd","7513","1,983.24","Client Transport","130235771","23/11/2018","Special Educational Needs","Special - Transport","R3042"
"Wolverhampton City Council","http://opendatacommunities.org/id/metropolitan-district-council/wolverhampton","719047","ATG Contract Services Ltd","7514","2,093.42","Client Transport","130235772","23/11/2018","Special Educational Needs","Special - Transport","R3042"
"Wolverhampton City Council","http://opendatacommunities.org/id/metropolitan-district-council/wolverhampton","719067","Robert Glover","RSGWAG020-4","500.15","Services - Professional Fees","130232162","07/11/2018","Visitor Economy","Technical Support - ACE NPO WAG","R4400"
"Wolverhampton City Council","http://opendatacommunities.org/id/metropolitan-district-council/wolverhampton","719067","Robert Glover","RSGWAG020-5","500.15","Services - Professional Fees","130232694","14/11/2018","Visitor Economy","Technical Support - ACE NPO WAG","R4400"
"Wolverhampton City Council","http://opendatacommunities.org/id/metropolitan-district-council/wolverhampton","719067","Robert Glover","RSGWAG020-6","400.12","Services - Professional Fees","130234517","21/11/2018","Visitor Economy","Technical Support - ACE NPO WAG","R4400"
"Wolverhampton City Council","http://opendatacommunities.org/id/metropolitan-district-council/wolverhampton","719095","Helen Clayton: Oodles of Doodles","17","280.00","Services - Professional Fees","130232924","21/11/2018","Visitor Economy","Education And Access","R4400"
"Wolverhampton City Council","http://opendatacommunities.org/id/metropolitan-district-council/wolverhampton","719096","Comberton Primary School (Worcester. CC)","P19123620181119","600.00","Grant Payments to Individuals","190530594","21/11/2018","Children and young people in care","Pupil Premium","R6402"
"Wolverhampton City Council","http://opendatacommunities.org/id/metropolitan-district-council/wolverhampton","719111","The Jane Lane School","P19123620181119","600.00","Grant Payments to Individuals","190530594","21/11/2018","Children and young people in care","Pupil Premium","R6402"
"Wolverhampton City Council","http://opendatacommunities.org/id/metropolitan-district-council/wolverhampton","719111","The Jane Lane School","P19123620181119","600.00","Grant Payments to Individuals","190530594","21/11/2018","Children and young people in care","Pupil Premium","R6402"
"Wolverhampton City Council","http://opendatacommunities.org/id/metropolitan-district-council/wolverhampton","719123","The Huntercombe Group","24405343","495.00","TPP - Alternative Provision of Education","130234046","07/11/2018","Special Educational Needs","SEN Education OOC","R5037"
"Wolverhampton City Council","http://opendatacommunities.org/id/metropolitan-district-council/wolverhampton","719177","Transparent Care Limited","P190861 09121820181119","5,299.80","TPP - Residential Care - Long Term","190530755","21/11/2018","Learning Disabilities Care Purchasing","LD Care Purchasing (Spot Placements)","R5400"
"Wolverhampton City Council","http://opendatacommunities.org/id/metropolitan-district-council/wolverhampton","719177","Transparent Care Limited","P190861 09121820181119","5,449.80","TPP - Residential Care - Long Term","190530755","21/11/2018","Learning Disabilities Care Purchasing","LD Care Purchasing (Spot Placements)","R5400"
"Wolverhampton City Council","http://opendatacommunities.org/id/metropolitan-district-council/wolverhampton","719177","Transparent Care Limited","P190861 09121820181119","8,599.80","TPP - Residential Care - Long Term","190530755","21/11/2018","Learning Disabilities Care Purchasing","LD Care Purchasing (Spot Placements)","R5400"
"Wolverhampton City Council","http://opendatacommunities.org/id/metropolitan-district-council/wolverhampton","719202","The Bigger Picture Education Service","16092402","84.00","Services - Professional Fees","130233418","16/11/2018","Children and young people in care","Pupil Premium","R4400"
"Wolverhampton City Council","http://opendatacommunities.org/id/metropolitan-district-council/wolverhampton","719202","The Bigger Picture Education Service","16092402","168.00","Services - Professional Fees","130233418","16/11/2018","Children and young people in care","Pupil Premium","R4400"
"Wolverhampton City Council","http://opendatacommunities.org/id/metropolitan-district-council/wolverhampton","719202","The Bigger Picture Education Service","16092402","340.00","Services - Professional Fees","130233418","16/11/2018","Children and young people in care","Pupil Premium","R4400"
"Wolverhampton City Council","http://opendatacommunities.org/id/metropolitan-district-council/wolverhampton","719205","Lewisham & Greenwich NHS Trust","8491874 GUM Month 5 - Aug 2018","159.67","TPP - Public Health Contracts","190532217","23/11/2018","Starting and Developing Well","Sexual Health","R5060"
"Wolverhampton City Council","http://opendatacommunities.org/id/metropolitan-district-council/wolverhampton","719291","Amythyst Academy Trust (Moreton School)","P19123620181119","600.00","Grant Payments to Individuals","190530594","21/11/2018","Children and young people in care","Pupil Premium","R6402"
"Wolverhampton City Council","http://opendatacommunities.org/id/metropolitan-district-council/wolverhampton","719291","Amythyst Academy Trust (Moreton School)","P19123620181119","600.00","Grant Payments to Individuals","190530594","21/11/2018","Children and young people in care","Pupil Premium","R6402"
"Wolverhampton City Council","http://opendatacommunities.org/id/metropolitan-district-council/wolverhampton","719291","Amythyst Academy Trust (Moreton School)","P19123620181119","600.00","Grant Payments to Individuals","190530594","21/11/2018","Children and young people in care","Pupil Premium","R6402"
"Wolverhampton City Council","http://opendatacommunities.org/id/metropolitan-district-council/wolverhampton","719291","Amythyst Academy Trust (Moreton School)","P19123620181119","600.00","Grant Payments to Individuals","190530594","21/11/2018","Children and young people in care","Pupil Premium","R6402"
"Wolverhampton City Council","http://opendatacommunities.org/id/metropolitan-district-council/wolverhampton","719291","Amythyst Academy Trust (Moreton School)","P19123620181119","600.00","Grant Payments to Individuals","190530594","21/11/2018","Children and young people in care","Pupil Premium","R6402"
"Wolverhampton City Council","http://opendatacommunities.org/id/metropolitan-district-council/wolverhampton","719291","Amythyst Academy Trust (Moreton School)","P19123620181119","600.00","Grant Payments to Individuals","190530594","21/11/2018","Children and young people in care","Pupil Premium","R6402"
"Wolverhampton City Council","http://opendatacommunities.org/id/metropolitan-district-council/wolverhampton","719291","Amythyst Academy Trust (Moreton School)","P19123620181119","600.00","Grant Payments to Individuals","190530594","21/11/2018","Children and young people in care","Pupil Premium","R6402"
"Wolverhampton City Council","http://opendatacommunities.org/id/metropolitan-district-council/wolverhampton","719291","Amythyst Academy Trust (Moreton School)","P19123620181119","600.00","Grant Payments to Individuals","190530594","21/11/2018","Children and young people in care","Pupil Premium","R6402"
"Wolverhampton City Council","http://opendatacommunities.org/id/metropolitan-district-council/wolverhampton","719292","Bushbury Lane Academy (Oxley Primary)","P19123620181119","600.00","Grant Payments to Individuals","190530594","21/11/2018","Children and young people in care","Pupil Premium","R6402"
"Wolverhampton City Council","http://opendatacommunities.org/id/metropolitan-district-council/wolverhampton","719292","Bushbury Lane Academy (Oxley Primary)","P19123620181119","600.00","Grant Payments to Individuals","190530594","21/11/2018","Children and young people in care","Pupil Premium","R6402"
"Wolverhampton City Council","http://opendatacommunities.org/id/metropolitan-district-council/wolverhampton","719292","Bushbury Lane Academy (Oxley Primary)","P19123620181119","600.00","Grant Payments to Individuals","190530594","21/11/2018","Children and young people in care","Pupil Premium","R6402"
"Wolverhampton City Council","http://opendatacommunities.org/id/metropolitan-district-council/wolverhampton","719311","Grange Park Primary School","P19123620181119","600.00","Grant Payments to Individuals","190530594","21/11/2018","Children and young people in care","Pupil Premium","R6402"
"Wolverhampton City Council","http://opendatacommunities.org/id/metropolitan-district-council/wolverhampton","719326","A T Graphics","1164872","600.00","Marketing \ Non-staff advertising","130233419","21/11/2018","Markets","Bilston Market and Licensed Operations","R4317"
"Wolverhampton City Council","http://opendatacommunities.org/id/metropolitan-district-council/wolverhampton","719329","Audience Systems Limited","OP/0037429","781.20","R&M - Departmental planned (external)","130234398","14/11/2018","Facilities Management","Caretakers Community Centre","R2001"
"Wolverhampton City Council","http://opendatacommunities.org/id/metropolitan-district-council/wolverhampton","719353","Parkside Middle School","P19223320181126","600.00","Grant Payments to Individuals","190534104","29/11/2018","Children and young people in care","Pupil Premium","R6402"
"Wolverhampton City Council","http://opendatacommunities.org/id/metropolitan-district-council/wolverhampton","719353","Parkside Middle School","P19223320181126","600.00","Grant Payments to Individuals","190534104","29/11/2018","Children and young people in care","Pupil Premium","R6402"
"Wolverhampton City Council","http://opendatacommunities.org/id/metropolitan-district-council/wolverhampton","719381","Exterion Media","SINV00157623","810.00","Marketing \ Non-staff advertising","130226988","23/11/2018","Markets","Wolverhampton Indoor and Open Market","R4317"
"Wolverhampton City Council","http://opendatacommunities.org/id/metropolitan-district-council/wolverhampton","719381","Exterion Media","SINV00157622","1,575.00","Marketing \ Non-staff advertising","130226987","21/11/2018","Markets","Wolverhampton Indoor and Open Market","R4317"
"Wolverhampton City Council","http://opendatacommunities.org/id/metropolitan-district-council/wolverhampton","719382","Wiltshire Farm Foods (W-ton)","F096-PSI094610","205.79","Provisions (Not for resale)","130234047","30/11/2018","Learning Disability Provider","Duke Street Bungalows","R4101"
"Wolverhampton City Council","http://opendatacommunities.org/id/metropolitan-district-council/wolverhampton","719382","Wiltshire Farm Foods (W-ton)","F096-PSI092902","205.97","Provisions (Not for resale)","130230935","07/11/2018","Learning Disability Provider","Duke Street Bungalows","R4101"
"Wolverhampton City Council","http://opendatacommunities.org/id/metropolitan-district-council/wolverhampton","719382","Wiltshire Farm Foods (W-ton)","F096-PSI092445","205.94","Provisions (Not for resale)","130229941","07/11/2018","Learning Disability Provider","Duke Street Bungalows","R4101"
"Wolverhampton City Council","http://opendatacommunities.org/id/metropolitan-district-council/wolverhampton","719382","Wiltshire Farm Foods (W-ton)","F096-PSI092020","205.94","Provisions (Not for resale)","130229733","07/11/2018","Learning Disability Provider","Duke Street Bungalows","R4101"
"Wolverhampton City Council","http://opendatacommunities.org/id/metropolitan-district-council/wolverhampton","719382","Wiltshire Farm Foods (W-ton)","F096-PSI093316","205.97","Provisions (Not for resale)","130232279","07/11/2018","Learning Disability Provider","Duke Street Bungalows","R4101"
"Wolverhampton City Council","http://opendatacommunities.org/id/metropolitan-district-council/wolverhampton","719382","Wiltshire Farm Foods (W-ton)","F096-PSI093693","205.79","Provisions (Not for resale)","130232925","14/11/2018","Learning Disability Provider","Duke Street Bungalows","R4101"
"Wolverhampton City Council","http://opendatacommunities.org/id/metropolitan-district-council/wolverhampton","719382","Wiltshire Farm Foods (W-ton)","F096-PSI094142","205.79","Provisions (Not for resale)","130233127","21/11/2018","Learning Disability Provider","Duke Street Bungalows","R4101"
"Wolverhampton City Council","http://opendatacommunities.org/id/metropolitan-district-council/wolverhampton","719389","Pervasive Networks Limited","6164001563","2,315.90","Computing - Purchase of Hardware","130235773","30/11/2018","ICTS","Strategic ICTS (ICT Service Budget)","R4530"
"Wolverhampton City Council","http://opendatacommunities.org/id/metropolitan-district-council/wolverhampton","719411","Paul Lloyd","00018","450.00","No Recourse to Public Funds","130234048","30/11/2018","Children and young people in care","Childrens with Disabilities Team","R6314"
"Wolverhampton City Council","http://opendatacommunities.org/id/metropolitan-district-council/wolverhampton","719411","Paul Lloyd","00020","450.00","No Recourse to Public Funds","130234050","30/11/2018","Children and young people in care","Childrens with Disabilities Team","R6314"
"Wolverhampton City Council","http://opendatacommunities.org/id/metropolitan-district-council/wolverhampton","719411","Paul Lloyd","00019","450.00","No Recourse to Public Funds","130234049","30/11/2018","Children and young people in care","Childrens with Disabilities Team","R6314"
"Wolverhampton City Council","http://opendatacommunities.org/id/metropolitan-district-council/wolverhampton","719414","Homerton Uni Hosp NHS Foundation Trust","187104 GUM Month 05","105.88","TPP - Public Health Contracts","190524455","02/11/2018","Starting and Developing Well","Sexual Health","R5060"
"Wolverhampton City Council","http://opendatacommunities.org/id/metropolitan-district-council/wolverhampton","719416","Southam College","P19223320181126","600.00","Grant Payments to Individuals","190534104","29/11/2018","Children and young people in care","Pupil Premium","R6402"
"Wolverhampton City Council","http://opendatacommunities.org/id/metropolitan-district-council/wolverhampton","719449","Mentoring West Midlands CIC","0609","396.00","Services - Professional Fees","130232926","21/11/2018","Strengthening Families","EI Area 1- Eastfield","R4400"
"Wolverhampton City Council","http://opendatacommunities.org/id/metropolitan-district-council/wolverhampton","719449","Mentoring West Midlands CIC","0611","528.00","Services - Supplies and Services to service users","130232927","21/11/2018","Strengthening Families","EI Area 3 - Graiseley","R4408"
"Wolverhampton City Council","http://opendatacommunities.org/id/metropolitan-district-council/wolverhampton","719462","Tividale Hall Primary School","P19223320181126","600.00","Grant Payments to Individuals","190534104","29/11/2018","Children and young people in care","Pupil Premium","R6402"
"Wolverhampton City Council","http://opendatacommunities.org/id/metropolitan-district-council/wolverhampton","719501","Brownhills School","P19223320181126","600.00","Grant Payments to Individuals","190534104","29/11/2018","Children and young people in care","Pupil Premium","R6402"
"Wolverhampton City Council","http://opendatacommunities.org/id/metropolitan-district-council/wolverhampton","719501","Brownhills School","P19123620181119","600.00","Grant Payments to Individuals","190530594","21/11/2018","Children and young people in care","Pupil Premium","R6402"
"Wolverhampton City Council","http://opendatacommunities.org/id/metropolitan-district-council/wolverhampton","719501","Brownhills School","P19123620181119","600.00","Grant Payments to Individuals","190530594","21/11/2018","Children and young people in care","Pupil Premium","R6402"
"Wolverhampton City Council","http://opendatacommunities.org/id/metropolitan-district-council/wolverhampton","719501","Brownhills School","P19123620181119","600.00","Grant Payments to Individuals","190530594","21/11/2018","Children and young people in care","Pupil Premium","R6402"
"Wolverhampton City Council","http://opendatacommunities.org/id/metropolitan-district-council/wolverhampton","719501","Brownhills School","P19123620181119","600.00","Grant Payments to Individuals","190530594","21/11/2018","Children and young people in care","Pupil Premium","R6402"
"Wolverhampton City Council","http://opendatacommunities.org/id/metropolitan-district-council/wolverhampton","719501","Brownhills School","P19123620181119","600.00","Grant Payments to Individuals","190530594","21/11/2018","Children and young people in care","Pupil Premium","R6402"
"Wolverhampton City Council","http://opendatacommunities.org/id/metropolitan-district-council/wolverhampton","719501","Brownhills School","P19123620181119","600.00","Grant Payments to Individuals","190530594","21/11/2018","Children and young people in care","Pupil Premium","R6402"
"Wolverhampton City Council","http://opendatacommunities.org/id/metropolitan-district-council/wolverhampton","719501","Brownhills School","P19123620181119","600.00","Grant Payments to Individuals","190530594","21/11/2018","Children and young people in care","Pupil Premium","R6402"
"Wolverhampton City Council","http://opendatacommunities.org/id/metropolitan-district-council/wolverhampton","719516","Starfish Health & Wellbeing CIC","SF/WCC-019","8,916.66","TPP - Social Care Support Services","130233827","29/11/2018","Strategic Commissioning","Commissioning Mental Health","R5501"
"Wolverhampton City Council","http://opendatacommunities.org/id/metropolitan-district-council/wolverhampton","719527","Water Plus","01914704_3005909301","791.90","Water Charges","190532497","23/11/2018","Corporate Asset Management","Central Utilities to Recharge","R2400"
"Wolverhampton City Council","http://opendatacommunities.org/id/metropolitan-district-council/wolverhampton","719527","Water Plus","01914704_3006784677","241.95","Water Charges","190532447","23/11/2018","Schools","Lanesfield Primary School","R2400"
"Wolverhampton City Council","http://opendatacommunities.org/id/metropolitan-district-council/wolverhampton","719527","Water Plus","01914704_3007001072","53.03","Water Charges","190532439","23/11/2018","Schools","Bushbury Nursery","R2400"
"Wolverhampton City Council","http://opendatacommunities.org/id/metropolitan-district-council/wolverhampton","719527","Water Plus","01895038_3005551016","213.54","Water Charges","190532418","23/11/2018","Facilities Management","Management of Vacant Properties","R2400"
"Wolverhampton City Council","http://opendatacommunities.org/id/metropolitan-district-council/wolverhampton","719527","Water Plus","01914704_300705494X","163.79","Water Charges","190532455","23/11/2018","Schools","Springvale Primary School","R2400"
"Wolverhampton City Council","http://opendatacommunities.org/id/metropolitan-district-council/wolverhampton","719527","Water Plus","00174791_300705494X","-1,288.34","Water Charges","190532456","23/11/2018","Schools","Springvale Primary School","R2400"
"Wolverhampton City Council","http://opendatacommunities.org/id/metropolitan-district-council/wolverhampton","719527","Water Plus","01914704_3005454762","615.86","Water Charges","190532453","23/11/2018","Schools","Oak Meadow Primary School","R2400"
"Wolverhampton City Council","http://opendatacommunities.org/id/metropolitan-district-council/wolverhampton","719527","Water Plus","01914704_3005470946","570.32","Water Charges","190532460","23/11/2018","Schools","Holy Trinity Catholic Primary School","R2400"
"Wolverhampton City Council","http://opendatacommunities.org/id/metropolitan-district-council/wolverhampton","719527","Water Plus","01914704_3007160103","1,821.32","Water Charges","190532480","23/11/2018","Schools","Rakegate Primary School","R2400"
"Wolverhampton City Council","http://opendatacommunities.org/id/metropolitan-district-council/wolverhampton","719527","Water Plus","01914704_3005016102","45.55","Water Charges","190532459","23/11/2018","Schools","Holy Trinity Catholic Primary School","R2400"
"Wolverhampton City Council","http://opendatacommunities.org/id/metropolitan-district-council/wolverhampton","719527","Water Plus","01914704_3005254054","475.13","Water Charges","190532468","23/11/2018","Schools","Warstones Primary School","R2400"
"Wolverhampton City Council","http://opendatacommunities.org/id/metropolitan-district-council/wolverhampton","719527","Water Plus","01914704_3005472701","633.56","Water Charges","190532475","23/11/2018","Schools","St Luke�s Church of England Aided Primary School","R2400"
"Wolverhampton City Council","http://opendatacommunities.org/id/metropolitan-district-council/wolverhampton","719527","Water Plus","01914704_3005454711","575.47","Water Charges","190532469","23/11/2018","Schools","Dovecotes Primary School","R2400"
"Wolverhampton City Council","http://opendatacommunities.org/id/metropolitan-district-council/wolverhampton","719527","Water Plus","01914704_3005254038","288.53","Water Charges","190532472","23/11/2018","Schools","West Park Primary School","R2400"
"Wolverhampton City Council","http://opendatacommunities.org/id/metropolitan-district-council/wolverhampton","719527","Water Plus","01895038_3005494756","4.40","Water Charges","190532526","23/11/2018","Corporate Asset Management","Central Utilities to Recharge","R2400"
"Wolverhampton City Council","http://opendatacommunities.org/id/metropolitan-district-council/wolverhampton","719527","Water Plus","01895038_3005512495","54.27","Water Charges","190532529","23/11/2018","Corporate Asset Management","Central Utilities to Recharge","R2400"
"Wolverhampton City Council","http://opendatacommunities.org/id/metropolitan-district-council/wolverhampton","719527","Water Plus","01895038_3005177610","17.62","Water Charges","190532517","23/11/2018","Corporate Asset Management","Central Utilities to Recharge","R2400"
"Wolverhampton City Council","http://opendatacommunities.org/id/metropolitan-district-council/wolverhampton","719527","Water Plus","01895038_3005179877","386.80","Water Charges","190532518","23/11/2018","Corporate Asset Management","Central Utilities to Recharge","R2400"
"Wolverhampton City Council","http://opendatacommunities.org/id/metropolitan-district-council/wolverhampton","719527","Water Plus","01895038_3005190269","43.96","Water Charges","190532520","23/11/2018","Corporate Asset Management","Central Utilities to Recharge","R2400"
"Wolverhampton City Council","http://opendatacommunities.org/id/metropolitan-district-council/wolverhampton","719527","Water Plus","01895038_3005875725","411.66","Water Charges","190532539","23/11/2018","Corporate Asset Management","Central Utilities to Recharge","R2400"
"Wolverhampton City Council","http://opendatacommunities.org/id/metropolitan-district-council/wolverhampton","719527","Water Plus","01895038_3005870014","30.74","Water Charges","190532537","23/11/2018","Corporate Asset Management","Central Utilities to Recharge","R2400"
"Wolverhampton City Council","http://opendatacommunities.org/id/metropolitan-district-council/wolverhampton","719527","Water Plus","01895038_3005909263","14,902.41","Water Charges","190532544","23/11/2018","Corporate Asset Management","Central Utilities to Recharge","R2400"
"Wolverhampton City Council","http://opendatacommunities.org/id/metropolitan-district-council/wolverhampton","719527","Water Plus","01895038_3005875741","217.56","Water Charges","190532540","23/11/2018","Corporate Asset Management","Central Utilities to Recharge","R2400"
"Wolverhampton City Council","http://opendatacommunities.org/id/metropolitan-district-council/wolverhampton","719527","Water Plus","01895038_3006091132","179.38","Water Charges","190532551","23/11/2018","Corporate Asset Management","Central Utilities to Recharge","R2400"
"Wolverhampton City Council","http://opendatacommunities.org/id/metropolitan-district-council/wolverhampton","719527","Water Plus","01895038_3006170814","195.71","Water Charges","190532553","23/11/2018","Corporate Asset Management","Central Utilities to Recharge","R2400"
"Wolverhampton City Council","http://opendatacommunities.org/id/metropolitan-district-council/wolverhampton","719527","Water Plus","01895038_3006305728","22.72","Water Charges","190532561","23/11/2018","Corporate Asset Management","Central Utilities to Recharge","R2400"
"Wolverhampton City Council","http://opendatacommunities.org/id/metropolitan-district-council/wolverhampton","719527","Water Plus","01895038_3006217276","23.71","Water Charges","190532560","23/11/2018","Corporate Asset Management","Central Utilities to Recharge","R2400"
"Wolverhampton City Council","http://opendatacommunities.org/id/metropolitan-district-council/wolverhampton","719527","Water Plus","01895038_3006453948","16.61","Water Charges","190532570","23/11/2018","Corporate Asset Management","Central Utilities to Recharge","R2400"
"Wolverhampton City Council","http://opendatacommunities.org/id/metropolitan-district-council/wolverhampton","719527","Water Plus","01895038_3006451953","527.91","Water Charges","190532568","23/11/2018","Corporate Asset Management","Central Utilities to Recharge","R2400"
"Wolverhampton City Council","http://opendatacommunities.org/id/metropolitan-district-council/wolverhampton","719527","Water Plus","01895038_3006789830","770.02","Water Charges","190532602","23/11/2018","Corporate Asset Management","Central Utilities to Recharge","R2400"
"Wolverhampton City Council","http://opendatacommunities.org/id/metropolitan-district-council/wolverhampton","719527","Water Plus","01895038_3006630866","198.74","Water Charges","190532591","23/11/2018","Corporate Asset Management","Central Utilities to Recharge","R2400"
"Wolverhampton City Council","http://opendatacommunities.org/id/metropolitan-district-council/wolverhampton","719527","Water Plus","01895038_3007026105","55.68","Water Charges","190532616","23/11/2018","Corporate Asset Management","Central Utilities to Recharge","R2400"
"Wolverhampton City Council","http://opendatacommunities.org/id/metropolitan-district-council/wolverhampton","719527","Water Plus","01895038_3006905881","65.43","Water Charges","190532610","23/11/2018","Corporate Asset Management","Central Utilities to Recharge","R2400"
"Wolverhampton City Council","http://opendatacommunities.org/id/metropolitan-district-council/wolverhampton","719527","Water Plus","01895038_300702465X","137.15","Water Charges","190532642","23/11/2018","Corporate Asset Management","Central Utilities to Recharge","R2400"
"Wolverhampton City Council","http://opendatacommunities.org/id/metropolitan-district-council/wolverhampton","719527","Water Plus","01895038_3007250404","207.20","Water Charges","190532628","23/11/2018","Corporate Asset Management","Central Utilities to Recharge","R2400"
"Wolverhampton City Council","http://opendatacommunities.org/id/metropolitan-district-council/wolverhampton","719527","Water Plus","01895038_3007822386","25.03","Water Charges","190532633","23/11/2018","Corporate Asset Management","Central Utilities to Recharge","R2400"
"Wolverhampton City Council","http://opendatacommunities.org/id/metropolitan-district-council/wolverhampton","719527","Water Plus","01895038_3007240867","12.02","Water Charges","190532625","23/11/2018","Corporate Asset Management","Central Utilities to Recharge","R2400"
"Wolverhampton City Council","http://opendatacommunities.org/id/metropolitan-district-council/wolverhampton","719527","Water Plus","01944041_3006234359","16.76","Water Charges","190532657","23/11/2018","Corporate Asset Management","Central Utilities to Recharge","R2400"
"Wolverhampton City Council","http://opendatacommunities.org/id/metropolitan-district-council/wolverhampton","719527","Water Plus","00198724_3005092070","-292.57","Water Charges","190532666","23/11/2018","Corporate Asset Management","Central Utilities to Recharge","R2400"
"Wolverhampton City Council","http://opendatacommunities.org/id/metropolitan-district-council/wolverhampton","719527","Water Plus","00278094_3005559459","-211.96","Water Charges","190532672","23/11/2018","Corporate Asset Management","Central Utilities to Recharge","R2400"
"Wolverhampton City Council","http://opendatacommunities.org/id/metropolitan-district-council/wolverhampton","719527","Water Plus","00198820_3005993922","-2,287.75","Water Charges","190532678","23/11/2018","Corporate Asset Management","Central Utilities to Recharge","R2400"
"Wolverhampton City Council","http://opendatacommunities.org/id/metropolitan-district-council/wolverhampton","719527","Water Plus","00278092_3005578623","-18,922.74","Water Charges","190532673","23/11/2018","Corporate Asset Management","Central Utilities to Recharge","R2400"
"Wolverhampton City Council","http://opendatacommunities.org/id/metropolitan-district-council/wolverhampton","719527","Water Plus","01944041_3007802563","167.83","Water Charges","190532665","23/11/2018","Corporate Asset Management","Central Utilities to Recharge","R2400"
"Wolverhampton City Council","http://opendatacommunities.org/id/metropolitan-district-council/wolverhampton","719527","Water Plus","00265830_3006473213","-1,715.28","Water Charges","190532682","23/11/2018","Corporate Asset Management","Central Utilities to Recharge","R2400"
"Wolverhampton City Council","http://opendatacommunities.org/id/metropolitan-district-council/wolverhampton","719527","Water Plus","00109093_3006476573","-453.18","Water Charges","190532684","23/11/2018","Corporate Asset Management","Central Utilities to Recharge","R2400"
"Wolverhampton City Council","http://opendatacommunities.org/id/metropolitan-district-council/wolverhampton","719527","Water Plus","00198824_3006473019","-660.37","Water Charges","190532681","23/11/2018","Corporate Asset Management","Central Utilities to Recharge","R2400"
"Wolverhampton City Council","http://opendatacommunities.org/id/metropolitan-district-council/wolverhampton","719527","Water Plus","00211195_3006199375","-803.23","Water Charges","190532679","23/11/2018","Corporate Asset Management","Central Utilities to Recharge","R2400"
"Wolverhampton City Council","http://opendatacommunities.org/id/metropolitan-district-council/wolverhampton","719527","Water Plus","00278093_3007108225","-3,894.90","Water Charges","190532693","23/11/2018","Corporate Asset Management","Central Utilities to Recharge","R2400"
"Wolverhampton City Council","http://opendatacommunities.org/id/metropolitan-district-council/wolverhampton","719527","Water Plus","00135899_300663084X","-25.06","Water Charges","190532687","23/11/2018","Corporate Asset Management","Central Utilities to Recharge","R2400"
"Wolverhampton City Council","http://opendatacommunities.org/id/metropolitan-district-council/wolverhampton","719527","Water Plus","01948841_3006474961","263.04","Water Charges","190532782","23/11/2018","Corporate Asset Management","Central Utilities to Recharge","R2400"
"Wolverhampton City Council","http://opendatacommunities.org/id/metropolitan-district-council/wolverhampton","719527","Water Plus","01948841_3006453948","152.13","Water Charges","190532778","23/11/2018","Corporate Asset Management","Central Utilities to Recharge","R2400"
"Wolverhampton City Council","http://opendatacommunities.org/id/metropolitan-district-council/wolverhampton","719527","Water Plus","01948841_3005177580","284.59","Water Charges","190532710","23/11/2018","Corporate Asset Management","Central Utilities to Recharge","R2400"
"Wolverhampton City Council","http://opendatacommunities.org/id/metropolitan-district-council/wolverhampton","719527","Water Plus","01948841_3006451880","552.28","Water Charges","190532775","23/11/2018","Corporate Asset Management","Central Utilities to Recharge","R2400"
"Wolverhampton City Council","http://opendatacommunities.org/id/metropolitan-district-council/wolverhampton","719527","Water Plus","01948841_3005437248","1,471.64","Water Charges","190532718","23/11/2018","Corporate Asset Management","Central Utilities to Recharge","R2400"
"Wolverhampton City Council","http://opendatacommunities.org/id/metropolitan-district-council/wolverhampton","719527","Water Plus","01948841_3005222160","1,865.76","Water Charges","190532715","23/11/2018","Corporate Asset Management","Central Utilities to Recharge","R2400"
"Wolverhampton City Council","http://opendatacommunities.org/id/metropolitan-district-council/wolverhampton","719527","Water Plus","01948841_3005551016","418.87","Water Charges","190532725","23/11/2018","Facilities Management","Management of Vacant Properties","R2400"
"Wolverhampton City Council","http://opendatacommunities.org/id/metropolitan-district-council/wolverhampton","719527","Water Plus","01948841_3005835146","330.24","Water Charges","190532735","23/11/2018","Corporate Asset Management","Central Utilities to Recharge","R2400"
"Wolverhampton City Council","http://opendatacommunities.org/id/metropolitan-district-council/wolverhampton","719527","Water Plus","01948841_3005895335","129.40","Water Charges","190532742","23/11/2018","Corporate Asset Management","Central Utilities to Recharge","R2400"
"Wolverhampton City Council","http://opendatacommunities.org/id/metropolitan-district-council/wolverhampton","719527","Water Plus","01948841_3005965244","80.39","Water Charges","190532746","23/11/2018","Corporate Asset Management","Central Utilities to Recharge","R2400"
"Wolverhampton City Council","http://opendatacommunities.org/id/metropolitan-district-council/wolverhampton","719527","Water Plus","01948841_3005986497","274.24","Water Charges","190532747","23/11/2018","Corporate Asset Management","Central Utilities to Recharge","R2400"
"Wolverhampton City Council","http://opendatacommunities.org/id/metropolitan-district-council/wolverhampton","719527","Water Plus","01948841_3005908062","2,631.25","Water Charges","190532744","23/11/2018","Corporate Asset Management","Central Utilities to Recharge","R2400"
"Wolverhampton City Council","http://opendatacommunities.org/id/metropolitan-district-council/wolverhampton","719527","Water Plus","01948841_3006333136","427.37","Water Charges","190532768","23/11/2018","Corporate Asset Management","Central Utilities to Recharge","R2400"
"Wolverhampton City Council","http://opendatacommunities.org/id/metropolitan-district-council/wolverhampton","719527","Water Plus","01948841_3006476743","705.90","Water Charges","190532789","23/11/2018","Corporate Asset Management","Central Utilities to Recharge","R2400"
"Wolverhampton City Council","http://opendatacommunities.org/id/metropolitan-district-council/wolverhampton","719527","Water Plus","01948841_3006482549","194.91","Water Charges","190532792","23/11/2018","Corporate Asset Management","Central Utilities to Recharge","R2400"
"Wolverhampton City Council","http://opendatacommunities.org/id/metropolitan-district-council/wolverhampton","719527","Water Plus","01948841_3006486102","146.82","Water Charges","190532793","23/11/2018","Corporate Asset Management","Central Utilities to Recharge","R2400"
"Wolverhampton City Council","http://opendatacommunities.org/id/metropolitan-district-council/wolverhampton","719527","Water Plus","01948841_3006630890","166.21","Water Charges","190532804","23/11/2018","Corporate Asset Management","Central Utilities to Recharge","R2400"
"Wolverhampton City Council","http://opendatacommunities.org/id/metropolitan-district-council/wolverhampton","719527","Water Plus","01948841_3006587502","883.83","Water Charges","190532799","23/11/2018","Corporate Asset Management","Central Utilities to Recharge","R2400"
"Wolverhampton City Council","http://opendatacommunities.org/id/metropolitan-district-council/wolverhampton","719527","Water Plus","01948841_3006899482","13.42","Water Charges","190532824","23/11/2018","Corporate Asset Management","Central Utilities to Recharge","R2400"
"Wolverhampton City Council","http://opendatacommunities.org/id/metropolitan-district-council/wolverhampton","719527","Water Plus","01948841_3006848020","154.39","Water Charges","190532820","23/11/2018","Corporate Asset Management","Central Utilities to Recharge","R2400"
"Wolverhampton City Council","http://opendatacommunities.org/id/metropolitan-district-council/wolverhampton","719527","Water Plus","01948841_3007005760","22.09","Water Charges","190532832","23/11/2018","Corporate Asset Management","Central Utilities to Recharge","R2400"
"Wolverhampton City Council","http://opendatacommunities.org/id/metropolitan-district-council/wolverhampton","719527","Water Plus","01948841_3006822196","203.40","Water Charges","190532818","23/11/2018","Corporate Asset Management","Central Utilities to Recharge","R2400"
"Wolverhampton City Council","http://opendatacommunities.org/id/metropolitan-district-council/wolverhampton","719527","Water Plus","01948841_3006896750","174.00","Water Charges","190532822","23/11/2018","Corporate Asset Management","Central Utilities to Recharge","R2400"
"Wolverhampton City Council","http://opendatacommunities.org/id/metropolitan-district-council/wolverhampton","719527","Water Plus","01948841_3006905407","6.82","Water Charges","190532825","23/11/2018","Corporate Asset Management","Central Utilities to Recharge","R2400"
"Wolverhampton City Council","http://opendatacommunities.org/id/metropolitan-district-council/wolverhampton","719527","Water Plus","01948841_3006729641","49.25","Water Charges","190532809","23/11/2018","Corporate Asset Management","Central Utilities to Recharge","R2400"
"Wolverhampton City Council","http://opendatacommunities.org/id/metropolitan-district-council/wolverhampton","719527","Water Plus","01948841_3007048699","11,628.53","Water Charges","190532836","23/11/2018","Corporate Asset Management","Central Utilities to Recharge","R2400"
"Wolverhampton City Council","http://opendatacommunities.org/id/metropolitan-district-council/wolverhampton","719527","Water Plus","01948841_3007108225","1,203.55","Water Charges","190532838","23/11/2018","Corporate Asset Management","Central Utilities to Recharge","R2400"
"Wolverhampton City Council","http://opendatacommunities.org/id/metropolitan-district-council/wolverhampton","719527","Water Plus","01948841_3006906543","1,565.73","Water Charges","190532829","23/11/2018","Corporate Asset Management","Central Utilities to Recharge","R2400"
"Wolverhampton City Council","http://opendatacommunities.org/id/metropolitan-district-council/wolverhampton","719527","Water Plus","01948841_3006934962","736.01","Water Charges","190532830","23/11/2018","Corporate Asset Management","Central Utilities to Recharge","R2400"
"Wolverhampton City Council","http://opendatacommunities.org/id/metropolitan-district-council/wolverhampton","719527","Water Plus","01948841_3007801125","167.83","Water Charges","190532853","23/11/2018","Corporate Asset Management","Central Utilities to Recharge","R2400"
"Wolverhampton City Council","http://opendatacommunities.org/id/metropolitan-district-council/wolverhampton","719527","Water Plus","01914704_300525593X","58.10","Water Charges","190532442","23/11/2018","Schools","Phoenix Nursery","R2400"
"Wolverhampton City Council","http://opendatacommunities.org/id/metropolitan-district-council/wolverhampton","719527","Water Plus","01914704_3007146836","57.22","Water Charges","190532429","23/11/2018","Schools","Whitgreave Infant School","R2400"
"Wolverhampton City Council","http://opendatacommunities.org/id/metropolitan-district-council/wolverhampton","719527","Water Plus","01895038_3006451856","32.98","Water Charges","190532424","23/11/2018","Estates and Valuations","Industrial Premises ; Fordhouse Road","R2400"
"Wolverhampton City Council","http://opendatacommunities.org/id/metropolitan-district-council/wolverhampton","719527","Water Plus","01895038_3005040674","50.00","Water Charges","190532506","23/11/2018","Corporate Asset Management","Central Utilities to Recharge","R2400"
"Wolverhampton City Council","http://opendatacommunities.org/id/metropolitan-district-council/wolverhampton","719527","Water Plus","01895038_3006780779","34.02","Water Charges","190532419","23/11/2018","Facilities Management","Management of Vacant Properties","R2400"
"Wolverhampton City Council","http://opendatacommunities.org/id/metropolitan-district-council/wolverhampton","719527","Water Plus","01895038_3005188965","99.08","Water Charges","190532519","23/11/2018","Corporate Asset Management","Central Utilities to Recharge","R2400"
"Wolverhampton City Council","http://opendatacommunities.org/id/metropolitan-district-council/wolverhampton","719527","Water Plus","01895038_3005057828","347.60","Water Charges","190532507","23/11/2018","Corporate Asset Management","Central Utilities to Recharge","R2400"
"Wolverhampton City Council","http://opendatacommunities.org/id/metropolitan-district-council/wolverhampton","719527","Water Plus","01895038_3005504670","86.09","Water Charges","190532528","23/11/2018","Corporate Asset Management","Central Utilities to Recharge","R2400"
"Wolverhampton City Council","http://opendatacommunities.org/id/metropolitan-district-council/wolverhampton","719527","Water Plus","01895038_3005993922","100.67","Water Charges","190532547","23/11/2018","Corporate Asset Management","Central Utilities to Recharge","R2400"
"Wolverhampton City Council","http://opendatacommunities.org/id/metropolitan-district-council/wolverhampton","719527","Water Plus","01895038_3006353471","340.85","Water Charges","190532565","23/11/2018","Corporate Asset Management","Central Utilities to Recharge","R2400"
"Wolverhampton City Council","http://opendatacommunities.org/id/metropolitan-district-council/wolverhampton","719527","Water Plus","01895038_3006201876","41.64","Water Charges","190532559","23/11/2018","Corporate Asset Management","Central Utilities to Recharge","R2400"
"Wolverhampton City Council","http://opendatacommunities.org/id/metropolitan-district-council/wolverhampton","719527","Water Plus","01895038_3006201752","61.86","Water Charges","190532558","23/11/2018","Corporate Asset Management","Central Utilities to Recharge","R2400"
"Wolverhampton City Council","http://opendatacommunities.org/id/metropolitan-district-council/wolverhampton","719527","Water Plus","01895038_3006476786","49.21","Water Charges","190532580","23/11/2018","Corporate Asset Management","Central Utilities to Recharge","R2400"
"Wolverhampton City Council","http://opendatacommunities.org/id/metropolitan-district-council/wolverhampton","719527","Water Plus","01895038_3007238951","330.24","Water Charges","190532624","23/11/2018","Corporate Asset Management","Central Utilities to Recharge","R2400"
"Wolverhampton City Council","http://opendatacommunities.org/id/metropolitan-district-council/wolverhampton","719527","Water Plus","01895038_3007823870","46.68","Water Charges","190532634","23/11/2018","Corporate Asset Management","Central Utilities to Recharge","R2400"
"Wolverhampton City Council","http://opendatacommunities.org/id/metropolitan-district-council/wolverhampton","719527","Water Plus","01895038_3007240891","122.69","Water Charges","190532626","23/11/2018","Corporate Asset Management","Central Utilities to Recharge","R2400"
"Wolverhampton City Council","http://opendatacommunities.org/id/metropolitan-district-council/wolverhampton","719527","Water Plus","01893267_3007238781","74.10","Water Charges","190532651","23/11/2018","Corporate Asset Management","Central Utilities to Recharge","R2400"
"Wolverhampton City Council","http://opendatacommunities.org/id/metropolitan-district-council/wolverhampton","719527","Water Plus","01893267_300623426X","330.24","Water Charges","190532654","23/11/2018","Corporate Asset Management","Central Utilities to Recharge","R2400"
"Wolverhampton City Council","http://opendatacommunities.org/id/metropolitan-district-council/wolverhampton","719527","Water Plus","01944041_3007238668","99.46","Water Charges","190532662","23/11/2018","Corporate Asset Management","Central Utilities to Recharge","R2400"
"Wolverhampton City Council","http://opendatacommunities.org/id/metropolitan-district-council/wolverhampton","719527","Water Plus","01948841_3005105849","96.31","Water Charges","190532705","23/11/2018","Corporate Asset Management","Central Utilities to Recharge","R2400"
"Wolverhampton City Council","http://opendatacommunities.org/id/metropolitan-district-council/wolverhampton","719527","Water Plus","01948841_3005240266","44.05","Water Charges","190532716","23/11/2018","Corporate Asset Management","Central Utilities to Recharge","R2400"
"Wolverhampton City Council","http://opendatacommunities.org/id/metropolitan-district-council/wolverhampton","719527","Water Plus","01948841_3005537951","123.61","Water Charges","190532724","23/11/2018","Corporate Asset Management","Central Utilities to Recharge","R2400"
"Wolverhampton City Council","http://opendatacommunities.org/id/metropolitan-district-council/wolverhampton","719527","Water Plus","01948841_3006476700","34.76","Water Charges","190532787","23/11/2018","Corporate Asset Management","Central Utilities to Recharge","R2400"
"Wolverhampton City Council","http://opendatacommunities.org/id/metropolitan-district-council/wolverhampton","719527","Water Plus","01948841_3005593908","115.12","Water Charges","190532730","23/11/2018","Corporate Asset Management","Central Utilities to Recharge","R2400"
"Wolverhampton City Council","http://opendatacommunities.org/id/metropolitan-district-council/wolverhampton","719527","Water Plus","01948841_3005870014","68.48","Water Charges","190532736","23/11/2018","Corporate Asset Management","Central Utilities to Recharge","R2400"
"Wolverhampton City Council","http://opendatacommunities.org/id/metropolitan-district-council/wolverhampton","719527","Water Plus","01948841_3005730956","31.46","Water Charges","190532733","23/11/2018","Estates and Valuations","Industrial Premises ; Loxdale Park","R2400"
"Wolverhampton City Council","http://opendatacommunities.org/id/metropolitan-district-council/wolverhampton","719527","Water Plus","01948841_3005600297","372.73","Water Charges","190532731","23/11/2018","Corporate Asset Management","Central Utilities to Recharge","R2400"
"Wolverhampton City Council","http://opendatacommunities.org/id/metropolitan-district-council/wolverhampton","719527","Water Plus","01948841_3006068084","104.81","Water Charges","190532751","23/11/2018","Corporate Asset Management","Central Utilities to Recharge","R2400"
"Wolverhampton City Council","http://opendatacommunities.org/id/metropolitan-district-council/wolverhampton","719527","Water Plus","01948841_3006685237","107.10","Water Charges","190532806","23/11/2018","Corporate Asset Management","Central Utilities to Recharge","R2400"
"Wolverhampton City Council","http://opendatacommunities.org/id/metropolitan-district-council/wolverhampton","719527","Water Plus","01948841_3006616014","382.10","Water Charges","190532801","23/11/2018","Corporate Asset Management","Central Utilities to Recharge","R2400"
"Wolverhampton City Council","http://opendatacommunities.org/id/metropolitan-district-council/wolverhampton","719527","Water Plus","01948841_3007193869","97.41","Water Charges","190532843","23/11/2018","Corporate Asset Management","Central Utilities to Recharge","R2400"
"Wolverhampton City Council","http://opendatacommunities.org/id/metropolitan-district-council/wolverhampton","719527","Water Plus","01948841_3007193850","117.21","Water Charges","190532842","23/11/2018","Corporate Asset Management","Central Utilities to Recharge","R2400"
"Wolverhampton City Council","http://opendatacommunities.org/id/metropolitan-district-council/wolverhampton","719527","Water Plus","01948841_3007530415","38.06","Water Charges","190532851","23/11/2018","Corporate Asset Management","Central Utilities to Recharge","R2400"
"Wolverhampton City Council","http://opendatacommunities.org/id/metropolitan-district-council/wolverhampton","719527","Water Plus","01948841_300548999X","119.06","Water Charges","190532858","23/11/2018","Corporate Asset Management","Central Utilities to Recharge","R2400"
"Wolverhampton City Council","http://opendatacommunities.org/id/metropolitan-district-council/wolverhampton","719527","Water Plus","01914704_300681262X","398.62","Water Charges","190532436","23/11/2018","Schools","Christ Church (Church of England) Junior School","R2400"
"Wolverhampton City Council","http://opendatacommunities.org/id/metropolitan-district-council/wolverhampton","719527","Water Plus","01914704_3005254100","292.35","Water Charges","190532435","23/11/2018","Schools","Uplands Junior School","R2400"
"Wolverhampton City Council","http://opendatacommunities.org/id/metropolitan-district-council/wolverhampton","719527","Water Plus","00269349_3005455130","-49.92","Water Charges","190532438","23/11/2018","Schools","Ashmore Park Nursery","R2400"
"Wolverhampton City Council","http://opendatacommunities.org/id/metropolitan-district-council/wolverhampton","719527","Water Plus","00247133_3007146836","-114.44","Water Charges","190532430","23/11/2018","Schools","Whitgreave Infant School","R2400"
"Wolverhampton City Council","http://opendatacommunities.org/id/metropolitan-district-council/wolverhampton","719527","Water Plus","01914704_3007243548","11.28","Water Charges","190532501","23/11/2018","Corporate Asset Management","Central Utilities to Recharge","R2400"
"Wolverhampton City Council","http://opendatacommunities.org/id/metropolitan-district-council/wolverhampton","719527","Water Plus","01914704_3007314372","3.27","Water Charges","190532502","23/11/2018","Corporate Asset Management","Central Utilities to Recharge","R2400"
"Wolverhampton City Council","http://opendatacommunities.org/id/metropolitan-district-council/wolverhampton","719527","Water Plus","01914704_3005456307","24.76","Water Charges","190532493","23/11/2018","Corporate Asset Management","Central Utilities to Recharge","R2400"
"Wolverhampton City Council","http://opendatacommunities.org/id/metropolitan-district-council/wolverhampton","719527","Water Plus","01914704_3005611043","44.55","Water Charges","190532496","23/11/2018","Corporate Asset Management","Central Utilities to Recharge","R2400"
"Wolverhampton City Council","http://opendatacommunities.org/id/metropolitan-district-council/wolverhampton","719527","Water Plus","01914704_3005455092","357.32","Water Charges","190532448","23/11/2018","Schools","Long Knowle Primary School","R2400"
"Wolverhampton City Council","http://opendatacommunities.org/id/metropolitan-district-council/wolverhampton","719527","Water Plus","00247135_3007007682","-250.20","Water Charges","190532444","23/11/2018","Schools","Bilston Nursery","R2400"
"Wolverhampton City Council","http://opendatacommunities.org/id/metropolitan-district-council/wolverhampton","719527","Water Plus","01914704_3005456498","1,517.97","Water Charges","190532434","23/11/2018","Schools","Springdale Primary School","R2400"
"Wolverhampton City Council","http://opendatacommunities.org/id/metropolitan-district-council/wolverhampton","719527","Water Plus","00135524_3005551016","-3,065.26","Water Charges","190532422","23/11/2018","Facilities Management","Management of Vacant Properties","R2400"
"Wolverhampton City Council","http://opendatacommunities.org/id/metropolitan-district-council/wolverhampton","719527","Water Plus","01914704_3005254224","484.21","Water Charges","190532452","23/11/2018","Schools","Merridale Primary School","R2400"
"Wolverhampton City Council","http://opendatacommunities.org/id/metropolitan-district-council/wolverhampton","719527","Water Plus","01914704_3005252698","241.58","Water Charges","190532450","23/11/2018","Schools","Loxdale Primary School","R2400"
"Wolverhampton City Council","http://opendatacommunities.org/id/metropolitan-district-council/wolverhampton","719527","Water Plus","01914704_3007099110","172.58","Water Charges","190532479","23/11/2018","Schools","Fallings Park Primary School","R2400"
"Wolverhampton City Council","http://opendatacommunities.org/id/metropolitan-district-council/wolverhampton","719527","Water Plus","01914704_3007100275","1,948.30","Water Charges","190532487","23/11/2018","Schools","Tettenhall Wood Special School","R2400"
"Wolverhampton City Council","http://opendatacommunities.org/id/metropolitan-district-council/wolverhampton","719527","Water Plus","01914704_3005456633","6.49","Water Charges","190532484","23/11/2018","Schools","Colton Hills Community School","R2400"
"Wolverhampton City Council","http://opendatacommunities.org/id/metropolitan-district-council/wolverhampton","719527","Water Plus","01914704_3005805786","599.70","Water Charges","190532482","23/11/2018","Schools","Bushbury Hill Primary School","R2400"
"Wolverhampton City Council","http://opendatacommunities.org/id/metropolitan-district-council/wolverhampton","719527","Water Plus","00193064_3006962737","-26,783.86","Water Charges","190532486","23/11/2018","Schools","Colton Hills Community School","R2400"
"Wolverhampton City Council","http://opendatacommunities.org/id/metropolitan-district-council/wolverhampton","719527","Water Plus","01914704_3005253988","741.45","Water Charges","190532490","23/11/2018","Corporate Asset Management","Central Utilities to Recharge","R2400"
"Wolverhampton City Council","http://opendatacommunities.org/id/metropolitan-district-council/wolverhampton","719527","Water Plus","00193076_3006812638","-2,595.57","Water Charges","190532463","23/11/2018","Schools","St Anthony�s Catholic Primary School","R2400"
"Wolverhampton City Council","http://opendatacommunities.org/id/metropolitan-district-council/wolverhampton","719527","Water Plus","01914704_3006812638","1,068.68","Water Charges","190532462","23/11/2018","Schools","St Anthony�s Catholic Primary School","R2400"
"Wolverhampton City Council","http://opendatacommunities.org/id/metropolitan-district-council/wolverhampton","719527","Water Plus","01914704_3005634353","567.69","Water Charges","190532474","23/11/2018","Schools","Trinity Church of England Primary School","R2400"
"Wolverhampton City Council","http://opendatacommunities.org/id/metropolitan-district-council/wolverhampton","719527","Water Plus","01895038_3005068838","254.38","Water Charges","190532509","23/11/2018","Corporate Asset Management","Central Utilities to Recharge","R2400"
"Wolverhampton City Council","http://opendatacommunities.org/id/metropolitan-district-council/wolverhampton","719527","Water Plus","01895038_300675526X","51.35","Water Charges","190532470","23/11/2018","Schools","Dovecotes Primary School","R2400"
"Wolverhampton City Council","http://opendatacommunities.org/id/metropolitan-district-council/wolverhampton","719527","Water Plus","01895038_3005600297","157.21","Water Charges","190532534","23/11/2018","Corporate Asset Management","Central Utilities to Recharge","R2400"
"Wolverhampton City Council","http://opendatacommunities.org/id/metropolitan-district-council/wolverhampton","719527","Water Plus","01895038_3005222160","948.35","Water Charges","190532521","23/11/2018","Corporate Asset Management","Central Utilities to Recharge","R2400"
"Wolverhampton City Council","http://opendatacommunities.org/id/metropolitan-district-council/wolverhampton","719527","Water Plus","01895038_3005835146","167.83","Water Charges","190532536","23/11/2018","Corporate Asset Management","Central Utilities to Recharge","R2400"
"Wolverhampton City Council","http://opendatacommunities.org/id/metropolitan-district-council/wolverhampton","719527","Water Plus","01895038_3006043154","6.82","Water Charges","190532549","23/11/2018","Corporate Asset Management","Central Utilities to Recharge","R2400"
"Wolverhampton City Council","http://opendatacommunities.org/id/metropolitan-district-council/wolverhampton","719527","Water Plus","01895038_3006068084","53.24","Water Charges","190532550","23/11/2018","Corporate Asset Management","Central Utilities to Recharge","R2400"
"Wolverhampton City Council","http://opendatacommunities.org/id/metropolitan-district-council/wolverhampton","719527","Water Plus","01895038_3006333136","273.30","Water Charges","190532564","23/11/2018","Corporate Asset Management","Central Utilities to Recharge","R2400"
"Wolverhampton City Council","http://opendatacommunities.org/id/metropolitan-district-council/wolverhampton","719527","Water Plus","01895038_3006182723","16.72","Water Charges","190532555","23/11/2018","Corporate Asset Management","Central Utilities to Recharge","R2400"
"Wolverhampton City Council","http://opendatacommunities.org/id/metropolitan-district-council/wolverhampton","719527","Water Plus","01895038_3006453832","214.46","Water Charges","190532569","23/11/2018","Corporate Asset Management","Central Utilities to Recharge","R2400"
"Wolverhampton City Council","http://opendatacommunities.org/id/metropolitan-district-council/wolverhampton","719527","Water Plus","01895038_3006451880","606.48","Water Charges","190532567","23/11/2018","Corporate Asset Management","Central Utilities to Recharge","R2400"
"Wolverhampton City Council","http://opendatacommunities.org/id/metropolitan-district-council/wolverhampton","719527","Water Plus","01895038_3006587502","449.62","Water Charges","190532587","23/11/2018","Corporate Asset Management","Central Utilities to Recharge","R2400"
"Wolverhampton City Council","http://opendatacommunities.org/id/metropolitan-district-council/wolverhampton","719527","Water Plus","01895038_3006849884","190.10","Water Charges","190532605","23/11/2018","Corporate Asset Management","Central Utilities to Recharge","R2400"
"Wolverhampton City Council","http://opendatacommunities.org/id/metropolitan-district-council/wolverhampton","719527","Water Plus","01895038_3007005043","175.59","Water Charges","190532614","23/11/2018","Corporate Asset Management","Central Utilities to Recharge","R2400"
"Wolverhampton City Council","http://opendatacommunities.org/id/metropolitan-district-council/wolverhampton","719527","Water Plus","01895038_3006905407","13.42","Water Charges","190532609","23/11/2018","Corporate Asset Management","Central Utilities to Recharge","R2400"
"Wolverhampton City Council","http://opendatacommunities.org/id/metropolitan-district-council/wolverhampton","719527","Water Plus","01895038_3006906047","23.43","Water Charges","190532611","23/11/2018","Corporate Asset Management","Central Utilities to Recharge","R2400"
"Wolverhampton City Council","http://opendatacommunities.org/id/metropolitan-district-council/wolverhampton","719527","Water Plus","01895038_300651467X","25.03","Water Charges","190532639","23/11/2018","Corporate Asset Management","Central Utilities to Recharge","R2400"
"Wolverhampton City Council","http://opendatacommunities.org/id/metropolitan-district-council/wolverhampton","719527","Water Plus","01893267_3007238668","195.71","Water Charges","190532650","23/11/2018","Corporate Asset Management","Central Utilities to Recharge","R2400"
"Wolverhampton City Council","http://opendatacommunities.org/id/metropolitan-district-council/wolverhampton","719527","Water Plus","01893267_3006835913","625.74","Water Charges","190532648","23/11/2018","Corporate Asset Management","Central Utilities to Recharge","R2400"
"Wolverhampton City Council","http://opendatacommunities.org/id/metropolitan-district-council/wolverhampton","719527","Water Plus","00090803_3005172856","-1,643.04","Water Charges","190532668","23/11/2018","Corporate Asset Management","Central Utilities to Recharge","R2400"
"Wolverhampton City Council","http://opendatacommunities.org/id/metropolitan-district-council/wolverhampton","719527","Water Plus","00278109_3006906543","-413.02","Water Charges","190532691","23/11/2018","Corporate Asset Management","Central Utilities to Recharge","R2400"
"Wolverhampton City Council","http://opendatacommunities.org/id/metropolitan-district-council/wolverhampton","719527","Water Plus","00198821_3006822196","-605.68","Water Charges","190532689","23/11/2018","Corporate Asset Management","Central Utilities to Recharge","R2400"
"Wolverhampton City Council","http://opendatacommunities.org/id/metropolitan-district-council/wolverhampton","719527","Water Plus","00211188_3007026105","-4,561.80","Water Charges","190532692","23/11/2018","Corporate Asset Management","Central Utilities to Recharge","R2400"
"Wolverhampton City Council","http://opendatacommunities.org/id/metropolitan-district-council/wolverhampton","719527","Water Plus","00211190_3007124492","-1,215.64","Water Charges","190532695","23/11/2018","Corporate Asset Management","Central Utilities to Recharge","R2400"
"Wolverhampton City Council","http://opendatacommunities.org/id/metropolitan-district-council/wolverhampton","719527","Water Plus","01948841_3005105865","196.67","Water Charges","190532706","23/11/2018","Corporate Asset Management","Central Utilities to Recharge","R2400"
"Wolverhampton City Council","http://opendatacommunities.org/id/metropolitan-district-council/wolverhampton","719527","Water Plus","01948841_3005111903","456.83","Water Charges","190532707","23/11/2018","Corporate Asset Management","Central Utilities to Recharge","R2400"
"Wolverhampton City Council","http://opendatacommunities.org/id/metropolitan-district-council/wolverhampton","719527","Water Plus","01948841_3005057828","684.46","Water Charges","190532701","23/11/2018","Corporate Asset Management","Central Utilities to Recharge","R2400"
"Wolverhampton City Council","http://opendatacommunities.org/id/metropolitan-district-council/wolverhampton","719527","Water Plus","01948841_3005040674","50.18","Water Charges","190532700","23/11/2018","Corporate Asset Management","Central Utilities to Recharge","R2400"
"Wolverhampton City Council","http://opendatacommunities.org/id/metropolitan-district-council/wolverhampton","719527","Water Plus","01948841_3005179877","760.37","Water Charges","190532712","23/11/2018","Corporate Asset Management","Central Utilities to Recharge","R2400"
"Wolverhampton City Council","http://opendatacommunities.org/id/metropolitan-district-council/wolverhampton","719527","Water Plus","01948841_3005172856","1,766.67","Water Charges","190532709","23/11/2018","Corporate Asset Management","Central Utilities to Recharge","R2400"
"Wolverhampton City Council","http://opendatacommunities.org/id/metropolitan-district-council/wolverhampton","719527","Water Plus","01948841_3006473019","194.98","Water Charges","190532779","23/11/2018","Corporate Asset Management","Central Utilities to Recharge","R2400"
"Wolverhampton City Council","http://opendatacommunities.org/id/metropolitan-district-council/wolverhampton","719527","Water Plus","01948841_3006476468","19.58","Water Charges","190532784","23/11/2018","Corporate Asset Management","Central Utilities to Recharge","R2400"
"Wolverhampton City Council","http://opendatacommunities.org/id/metropolitan-district-council/wolverhampton","719527","Water Plus","01948841_3006476573","12.98","Water Charges","190532785","23/11/2018","Corporate Asset Management","Central Utilities to Recharge","R2400"
"Wolverhampton City Council","http://opendatacommunities.org/id/metropolitan-district-council/wolverhampton","719527","Water Plus","01948841_3005471535","1,179.32","Water Charges","190532719","23/11/2018","Corporate Asset Management","Central Utilities to Recharge","R2400"
"Wolverhampton City Council","http://opendatacommunities.org/id/metropolitan-district-council/wolverhampton","719527","Water Plus","01948841_3005907945","1,988.30","Water Charges","190532743","23/11/2018","Corporate Asset Management","Central Utilities to Recharge","R2400"
"Wolverhampton City Council","http://opendatacommunities.org/id/metropolitan-district-council/wolverhampton","719527","Water Plus","01948841_3005872963","389.03","Water Charges","190532737","23/11/2018","Corporate Asset Management","Central Utilities to Recharge","R2400"
"Wolverhampton City Council","http://opendatacommunities.org/id/metropolitan-district-council/wolverhampton","719527","Water Plus","01948841_3005789225","45.96","Water Charges","190532734","23/11/2018","Estates and Valuations","Industrial Premises ; Loxdale Park","R2400"
"Wolverhampton City Council","http://opendatacommunities.org/id/metropolitan-district-council/wolverhampton","719527","Water Plus","01948841_3006170563","194.02","Water Charges","190532754","23/11/2018","Corporate Asset Management","Central Utilities to Recharge","R2400"
"Wolverhampton City Council","http://opendatacommunities.org/id/metropolitan-district-council/wolverhampton","719527","Water Plus","01948841_3006512707","141.69","Water Charges","190532794","23/11/2018","Corporate Asset Management","Central Utilities to Recharge","R2400"
"Wolverhampton City Council","http://opendatacommunities.org/id/metropolitan-district-council/wolverhampton","719527","Water Plus","01948841_3006476751","26.18","Water Charges","190532790","23/11/2018","Corporate Asset Management","Central Utilities to Recharge","R2400"
"Wolverhampton City Council","http://opendatacommunities.org/id/metropolitan-district-council/wolverhampton","719527","Water Plus","01948841_3006518071","17.62","Water Charges","190532796","23/11/2018","Corporate Asset Management","Central Utilities to Recharge","R2400"
"Wolverhampton City Council","http://opendatacommunities.org/id/metropolitan-district-council/wolverhampton","719527","Water Plus","01948841_3006747704","56.04","Water Charges","190532813","23/11/2018","Corporate Asset Management","Central Utilities to Recharge","R2400"
"Wolverhampton City Council","http://opendatacommunities.org/id/metropolitan-district-council/wolverhampton","719527","Water Plus","01948841_3006747488","23.25","Water Charges","190532812","23/11/2018","Corporate Asset Management","Central Utilities to Recharge","R2400"
"Wolverhampton City Council","http://opendatacommunities.org/id/metropolitan-district-council/wolverhampton","719527","Water Plus","01948841_3006751841","228.03","Water Charges","190532814","23/11/2018","Housing Revenue Account","Amounts to be Settled with Wolverhampton Homes","R2400"
"Wolverhampton City Council","http://opendatacommunities.org/id/metropolitan-district-council/wolverhampton","719527","Water Plus","01948841_3006636503","927.79","Water Charges","190532805","23/11/2018","Corporate Asset Management","Central Utilities to Recharge","R2400"
"Wolverhampton City Council","http://opendatacommunities.org/id/metropolitan-district-council/wolverhampton","719527","Water Plus","01948841_3007021960","5,844.27","Water Charges","190532833","23/11/2018","Corporate Asset Management","Central Utilities to Recharge","R2400"
"Wolverhampton City Council","http://opendatacommunities.org/id/metropolitan-district-council/wolverhampton","719527","Water Plus","01948841_3006738748","323.02","Water Charges","190532810","23/11/2018","Corporate Asset Management","Central Utilities to Recharge","R2400"
"Wolverhampton City Council","http://opendatacommunities.org/id/metropolitan-district-council/wolverhampton","719527","Water Plus","01948841_3007240867","21.28","Water Charges","190532846","23/11/2018","Corporate Asset Management","Central Utilities to Recharge","R2400"
"Wolverhampton City Council","http://opendatacommunities.org/id/metropolitan-district-council/wolverhampton","719527","Water Plus","01948841_3007237602","167.83","Water Charges","190532844","23/11/2018","Corporate Asset Management","Central Utilities to Recharge","R2400"
"Wolverhampton City Council","http://opendatacommunities.org/id/metropolitan-district-council/wolverhampton","719527","Water Plus","01948841_3007124492","788.84","Water Charges","190532840","23/11/2018","Corporate Asset Management","Central Utilities to Recharge","R2400"
"Wolverhampton City Council","http://opendatacommunities.org/id/metropolitan-district-council/wolverhampton","719527","Water Plus","01948841_3007250404","406.24","Water Charges","190532849","23/11/2018","Corporate Asset Management","Central Utilities to Recharge","R2400"
"Wolverhampton City Council","http://opendatacommunities.org/id/metropolitan-district-council/wolverhampton","719527","Water Plus","01948841_3007530849","79.19","Water Charges","190532852","23/11/2018","Corporate Asset Management","Central Utilities to Recharge","R2400"
"Wolverhampton City Council","http://opendatacommunities.org/id/metropolitan-district-council/wolverhampton","719527","Water Plus","01948841_300548825X","296.06","Water Charges","190532857","23/11/2018","Corporate Asset Management","Central Utilities to Recharge","R2400"
"Wolverhampton City Council","http://opendatacommunities.org/id/metropolitan-district-council/wolverhampton","719527","Water Plus","01895038_3006473108","59.72","Water Charges","190532572","23/11/2018","Corporate Asset Management","Central Utilities to Recharge","R2400"
"Wolverhampton City Council","http://opendatacommunities.org/id/metropolitan-district-council/wolverhampton","719527","Water Plus","01895038_3006896750","88.56","Water Charges","190532606","23/11/2018","Corporate Asset Management","Central Utilities to Recharge","R2400"
"Wolverhampton City Council","http://opendatacommunities.org/id/metropolitan-district-council/wolverhampton","719527","Water Plus","01948841_3005121909","86.86","Water Charges","190532708","23/11/2018","Corporate Asset Management","Central Utilities to Recharge","R2400"
"Wolverhampton City Council","http://opendatacommunities.org/id/metropolitan-district-council/wolverhampton","719527","Water Plus","01914704_3005456625","113.87","Water Charges","190532494","23/11/2018","Corporate Asset Management","Central Utilities to Recharge","R2400"
"Wolverhampton City Council","http://opendatacommunities.org/id/metropolitan-district-council/wolverhampton","719527","Water Plus","01914704_300543639X","61.20","Water Charges","190532503","23/11/2018","Corporate Asset Management","Central Utilities to Recharge","R2400"
"Wolverhampton City Council","http://opendatacommunities.org/id/metropolitan-district-council/wolverhampton","719527","Water Plus","01895038_3005027791","109.33","Water Charges","190532505","23/11/2018","Corporate Asset Management","Central Utilities to Recharge","R2400"
"Wolverhampton City Council","http://opendatacommunities.org/id/metropolitan-district-council/wolverhampton","719527","Water Plus","01895038_3006286812","36.08","Water Charges","190532423","23/11/2018","Estates and Valuations","Industrial Premises ; Fordhouse Road","R2400"
"Wolverhampton City Council","http://opendatacommunities.org/id/metropolitan-district-council/wolverhampton","719527","Water Plus","01895038_3007037107","84.62","Water Charges","190532432","23/11/2018","Schools","Christ Church (Tettenhall Wood) Infant School","R2400"
"Wolverhampton City Council","http://opendatacommunities.org/id/metropolitan-district-council/wolverhampton","719527","Water Plus","01914704_3006962710","75.73","Water Charges","190532454","23/11/2018","Schools","Springvale Primary School","R2400"
"Wolverhampton City Council","http://opendatacommunities.org/id/metropolitan-district-council/wolverhampton","719527","Water Plus","01914704_3005167267","118.65","Water Charges","190532488","23/11/2018","Corporate Asset Management","Central Utilities to Recharge","R2400"
"Wolverhampton City Council","http://opendatacommunities.org/id/metropolitan-district-council/wolverhampton","719527","Water Plus","01895038_3005105849","48.45","Water Charges","190532511","23/11/2018","Corporate Asset Management","Central Utilities to Recharge","R2400"
"Wolverhampton City Council","http://opendatacommunities.org/id/metropolitan-district-council/wolverhampton","719527","Water Plus","01895038_3005583511","352.42","Water Charges","190532532","23/11/2018","Corporate Asset Management","Central Utilities to Recharge","R2400"
"Wolverhampton City Council","http://opendatacommunities.org/id/metropolitan-district-council/wolverhampton","719527","Water Plus","01895038_3006022645","41.14","Water Charges","190532548","23/11/2018","Corporate Asset Management","Central Utilities to Recharge","R2400"
"Wolverhampton City Council","http://opendatacommunities.org/id/metropolitan-district-council/wolverhampton","719527","Water Plus","01895038_3006176898","31.63","Water Charges","190532554","23/11/2018","Corporate Asset Management","Central Utilities to Recharge","R2400"
"Wolverhampton City Council","http://opendatacommunities.org/id/metropolitan-district-council/wolverhampton","719527","Water Plus","01895038_3006317009","72.26","Water Charges","190532563","23/11/2018","Corporate Asset Management","Central Utilities to Recharge","R2400"
"Wolverhampton City Council","http://opendatacommunities.org/id/metropolitan-district-council/wolverhampton","719527","Water Plus","01895038_3006588304","37.98","Water Charges","190532588","23/11/2018","Corporate Asset Management","Central Utilities to Recharge","R2400"
"Wolverhampton City Council","http://opendatacommunities.org/id/metropolitan-district-council/wolverhampton","719527","Water Plus","01895038_3006518071","34.66","Water Charges","190532585","23/11/2018","Corporate Asset Management","Central Utilities to Recharge","R2400"
"Wolverhampton City Council","http://opendatacommunities.org/id/metropolitan-district-council/wolverhampton","719527","Water Plus","01895038_3006474961","62.90","Water Charges","190532574","23/11/2018","Corporate Asset Management","Central Utilities to Recharge","R2400"
"Wolverhampton City Council","http://opendatacommunities.org/id/metropolitan-district-council/wolverhampton","719527","Water Plus","01895038_3006848020","98.82","Water Charges","190532604","23/11/2018","Corporate Asset Management","Central Utilities to Recharge","R2400"
"Wolverhampton City Council","http://opendatacommunities.org/id/metropolitan-district-council/wolverhampton","719527","Water Plus","01895038_3006822196","103.08","Water Charges","190532603","23/11/2018","Corporate Asset Management","Central Utilities to Recharge","R2400"
"Wolverhampton City Council","http://opendatacommunities.org/id/metropolitan-district-council/wolverhampton","719527","Water Plus","01895038_3007250447","122.40","Water Charges","190532629","23/11/2018","Corporate Asset Management","Central Utilities to Recharge","R2400"
"Wolverhampton City Council","http://opendatacommunities.org/id/metropolitan-district-council/wolverhampton","719527","Water Plus","01895038_3007801125","330.24","Water Charges","190532632","23/11/2018","Corporate Asset Management","Central Utilities to Recharge","R2400"
"Wolverhampton City Council","http://opendatacommunities.org/id/metropolitan-district-council/wolverhampton","719527","Water Plus","01893267_3007802563","330.24","Water Charges","190532653","23/11/2018","Corporate Asset Management","Central Utilities to Recharge","R2400"
"Wolverhampton City Council","http://opendatacommunities.org/id/metropolitan-district-council/wolverhampton","719527","Water Plus","01944041_3007790956","99.46","Water Charges","190532664","23/11/2018","Corporate Asset Management","Central Utilities to Recharge","R2400"
"Wolverhampton City Council","http://opendatacommunities.org/id/metropolitan-district-council/wolverhampton","719527","Water Plus","01948841_3006451872","62.58","Water Charges","190532774","23/11/2018","Corporate Asset Management","Central Utilities to Recharge","R2400"
"Wolverhampton City Council","http://opendatacommunities.org/id/metropolitan-district-council/wolverhampton","719527","Water Plus","01948841_3006476697","33.22","Water Charges","190532786","23/11/2018","Corporate Asset Management","Central Utilities to Recharge","R2400"
"Wolverhampton City Council","http://opendatacommunities.org/id/metropolitan-district-council/wolverhampton","719527","Water Plus","01948841_3006475054","101.30","Water Charges","190532783","23/11/2018","Corporate Asset Management","Central Utilities to Recharge","R2400"
"Wolverhampton City Council","http://opendatacommunities.org/id/metropolitan-district-council/wolverhampton","719527","Water Plus","01948841_3005494756","49.87","Water Charges","190532720","23/11/2018","Corporate Asset Management","Central Utilities to Recharge","R2400"
"Wolverhampton City Council","http://opendatacommunities.org/id/metropolitan-district-council/wolverhampton","719527","Water Plus","01948841_3006286812","71.72","Water Charges","190532764","23/11/2018","Estates and Valuations","Industrial Premises ; Fordhouse Road","R2400"
"Wolverhampton City Council","http://opendatacommunities.org/id/metropolitan-district-council/wolverhampton","719527","Water Plus","01948841_3006353471","377.94","Water Charges","190532770","23/11/2018","Corporate Asset Management","Central Utilities to Recharge","R2400"
"Wolverhampton City Council","http://opendatacommunities.org/id/metropolitan-district-council/wolverhampton","719527","Water Plus","01948841_3006476786","96.98","Water Charges","190532791","23/11/2018","Corporate Asset Management","Central Utilities to Recharge","R2400"
"Wolverhampton City Council","http://opendatacommunities.org/id/metropolitan-district-council/wolverhampton","719527","Water Plus","01948841_3006762371","46.42","Water Charges","190532815","23/11/2018","Corporate Asset Management","Central Utilities to Recharge","R2400"
"Wolverhampton City Council","http://opendatacommunities.org/id/metropolitan-district-council/wolverhampton","719527","Water Plus","01948841_3006789830","369.02","Water Charges","190532817","23/11/2018","Corporate Asset Management","Central Utilities to Recharge","R2400"
"Wolverhampton City Council","http://opendatacommunities.org/id/metropolitan-district-council/wolverhampton","719527","Water Plus","01948841_300681911X","73.52","Water Charges","190532866","23/11/2018","Corporate Asset Management","Central Utilities to Recharge","R2400"
"Wolverhampton City Council","http://opendatacommunities.org/id/metropolitan-district-council/wolverhampton","719527","Water Plus","01948841_300752668X","340.03","Water Charges","190532868","23/11/2018","Corporate Asset Management","Central Utilities to Recharge","R2400"
"Wolverhampton City Council","http://opendatacommunities.org/id/metropolitan-district-council/wolverhampton","719527","Water Plus","01948841_3007823870","91.92","Water Charges","190532855","23/11/2018","Corporate Asset Management","Central Utilities to Recharge","R2400"
"Wolverhampton City Council","http://opendatacommunities.org/id/metropolitan-district-council/wolverhampton","719527","Water Plus","01948841_300559209X","86.86","Water Charges","190532859","23/11/2018","Facilities Management","Management of Vacant Properties","R2400"
"Wolverhampton City Council","http://opendatacommunities.org/id/metropolitan-district-council/wolverhampton","719527","Water Plus","01914704_3005702227","3.12","Water Charges","190532440","23/11/2018","Schools","Eastfield Nursery","R2400"
"Wolverhampton City Council","http://opendatacommunities.org/id/metropolitan-district-council/wolverhampton","719527","Water Plus","01914704_3005255301","9.09","Water Charges","190532492","23/11/2018","Corporate Asset Management","Central Utilities to Recharge","R2400"
"Wolverhampton City Council","http://opendatacommunities.org/id/metropolitan-district-council/wolverhampton","719527","Water Plus","01914704_3005471462","3,448.52","Water Charges","190532495","23/11/2018","Corporate Asset Management","Central Utilities to Recharge","R2400"
"Wolverhampton City Council","http://opendatacommunities.org/id/metropolitan-district-council/wolverhampton","719527","Water Plus","01914704_3006801555","563.64","Water Charges","190532499","23/11/2018","Corporate Asset Management","Central Utilities to Recharge","R2400"
"Wolverhampton City Council","http://opendatacommunities.org/id/metropolitan-district-council/wolverhampton","719527","Water Plus","01914704_300545343X","571.94","Water Charges","190532504","23/11/2018","Corporate Asset Management","Central Utilities to Recharge","R2400"
"Wolverhampton City Council","http://opendatacommunities.org/id/metropolitan-district-council/wolverhampton","719527","Water Plus","00198720_3007037107","-2,036.32","Water Charges","190532433","23/11/2018","Schools","Christ Church (Tettenhall Wood) Infant School","R2400"
"Wolverhampton City Council","http://opendatacommunities.org/id/metropolitan-district-council/wolverhampton","719527","Water Plus","01914704_3006985931","145.32","Water Charges","190532428","23/11/2018","Schools","Westacre Infant School","R2400"
"Wolverhampton City Council","http://opendatacommunities.org/id/metropolitan-district-council/wolverhampton","719527","Water Plus","01914704_3005198146","54.66","Water Charges","190532461","23/11/2018","Schools","St Anthony�s Catholic Primary School","R2400"
"Wolverhampton City Council","http://opendatacommunities.org/id/metropolitan-district-council/wolverhampton","719527","Water Plus","00078913_3005455092","-10,269.35","Water Charges","190532449","23/11/2018","Schools","Long Knowle Primary School","R2400"
"Wolverhampton City Council","http://opendatacommunities.org/id/metropolitan-district-council/wolverhampton","719527","Water Plus","00247136_3005252698","-254.22","Water Charges","190532451","23/11/2018","Schools","Loxdale Primary School","R2400"
"Wolverhampton City Council","http://opendatacommunities.org/id/metropolitan-district-council/wolverhampton","719527","Water Plus","01914704_3005475425","558.43","Water Charges","190532478","23/11/2018","Schools","Fallings Park Primary School","R2400"
"Wolverhampton City Council","http://opendatacommunities.org/id/metropolitan-district-council/wolverhampton","719527","Water Plus","01914704_3005218902","671.03","Water Charges","190532481","23/11/2018","Schools","Bushbury Hill Primary School","R2400"
"Wolverhampton City Council","http://opendatacommunities.org/id/metropolitan-district-council/wolverhampton","719527","Water Plus","01914704_3007055962","2,575.21","Water Charges","190532457","23/11/2018","Schools","Wilkinson Primary School","R2400"
"Wolverhampton City Council","http://opendatacommunities.org/id/metropolitan-district-council/wolverhampton","719527","Water Plus","01914704_3005455114","291.20","Water Charges","190532467","23/11/2018","Schools","St Thomas� Church of England Primary School","R2400"
"Wolverhampton City Council","http://opendatacommunities.org/id/metropolitan-district-council/wolverhampton","719527","Water Plus","01914704_3005254194","179.43","Water Charges","190532491","23/11/2018","Corporate Asset Management","Central Utilities to Recharge","R2400"
"Wolverhampton City Council","http://opendatacommunities.org/id/metropolitan-district-council/wolverhampton","719527","Water Plus","01914704_3005252612","539.66","Water Charges","190532483","23/11/2018","Schools","Stowheath Primary School","R2400"
"Wolverhampton City Council","http://opendatacommunities.org/id/metropolitan-district-council/wolverhampton","719527","Water Plus","01914704_3006962737","1,586.43","Water Charges","190532485","23/11/2018","Schools","Colton Hills Community School","R2400"
"Wolverhampton City Council","http://opendatacommunities.org/id/metropolitan-district-council/wolverhampton","719527","Water Plus","01914704_3005250326","1,607.11","Water Charges","190532489","23/11/2018","Corporate Asset Management","Central Utilities to Recharge","R2400"
"Wolverhampton City Council","http://opendatacommunities.org/id/metropolitan-district-council/wolverhampton","719527","Water Plus","01914704_3005453510","932.51","Water Charges","190532466","23/11/2018","Schools","St Paul�s Church of England (Aided) School","R2400"
"Wolverhampton City Council","http://opendatacommunities.org/id/metropolitan-district-council/wolverhampton","719527","Water Plus","01895038_3005092070","20.90","Water Charges","190532510","23/11/2018","Corporate Asset Management","Central Utilities to Recharge","R2400"
"Wolverhampton City Council","http://opendatacommunities.org/id/metropolitan-district-council/wolverhampton","719527","Water Plus","01895038_3005105865","388.06","Water Charges","190532512","23/11/2018","Corporate Asset Management","Central Utilities to Recharge","R2400"
"Wolverhampton City Council","http://opendatacommunities.org/id/metropolitan-district-council/wolverhampton","719527","Water Plus","01895038_3005257908","194.91","Water Charges","190532523","23/11/2018","Corporate Asset Management","Central Utilities to Recharge","R2400"
"Wolverhampton City Council","http://opendatacommunities.org/id/metropolitan-district-council/wolverhampton","719527","Water Plus","01895038_3005240266","22.14","Water Charges","190532522","23/11/2018","Corporate Asset Management","Central Utilities to Recharge","R2400"
"Wolverhampton City Council","http://opendatacommunities.org/id/metropolitan-district-council/wolverhampton","719527","Water Plus","01895038_3005537951","24.24","Water Charges","190532530","23/11/2018","Corporate Asset Management","Central Utilities to Recharge","R2400"
"Wolverhampton City Council","http://opendatacommunities.org/id/metropolitan-district-council/wolverhampton","719527","Water Plus","01895038_3005471535","600.12","Water Charges","190532525","23/11/2018","Corporate Asset Management","Central Utilities to Recharge","R2400"
"Wolverhampton City Council","http://opendatacommunities.org/id/metropolitan-district-council/wolverhampton","719527","Water Plus","01895038_3005908062","1,138.90","Water Charges","190532543","23/11/2018","Corporate Asset Management","Central Utilities to Recharge","R2400"
"Wolverhampton City Council","http://opendatacommunities.org/id/metropolitan-district-council/wolverhampton","719527","Water Plus","01895038_3005608344","1,357.79","Water Charges","190532535","23/11/2018","Corporate Asset Management","Central Utilities to Recharge","R2400"
"Wolverhampton City Council","http://opendatacommunities.org/id/metropolitan-district-council/wolverhampton","719527","Water Plus","01895038_3005895327","18.09","Water Charges","190532541","23/11/2018","Corporate Asset Management","Central Utilities to Recharge","R2400"
"Wolverhampton City Council","http://opendatacommunities.org/id/metropolitan-district-council/wolverhampton","719527","Water Plus","01895038_3005874516","393.12","Water Charges","190532538","23/11/2018","Corporate Asset Management","Central Utilities to Recharge","R2400"
"Wolverhampton City Council","http://opendatacommunities.org/id/metropolitan-district-council/wolverhampton","719527","Water Plus","01895038_3006476697","16.72","Water Charges","190532577","23/11/2018","Corporate Asset Management","Central Utilities to Recharge","R2400"
"Wolverhampton City Council","http://opendatacommunities.org/id/metropolitan-district-council/wolverhampton","719527","Water Plus","01895038_3006517717","11.13","Water Charges","190532584","23/11/2018","Corporate Asset Management","Central Utilities to Recharge","R2400"
"Wolverhampton City Council","http://opendatacommunities.org/id/metropolitan-district-council/wolverhampton","719527","Water Plus","01895038_3006729641","25.03","Water Charges","190532596","23/11/2018","Corporate Asset Management","Central Utilities to Recharge","R2400"
"Wolverhampton City Council","http://opendatacommunities.org/id/metropolitan-district-council/wolverhampton","719527","Water Plus","01895038_3006616073","55.82","Water Charges","190532590","23/11/2018","Corporate Asset Management","Central Utilities to Recharge","R2400"
"Wolverhampton City Council","http://opendatacommunities.org/id/metropolitan-district-council/wolverhampton","719527","Water Plus","01895038_3006747488","45.74","Water Charges","190532599","23/11/2018","Corporate Asset Management","Central Utilities to Recharge","R2400"
"Wolverhampton City Council","http://opendatacommunities.org/id/metropolitan-district-council/wolverhampton","719527","Water Plus","01895038_3006899482","6.82","Water Charges","190532608","23/11/2018","Corporate Asset Management","Central Utilities to Recharge","R2400"
"Wolverhampton City Council","http://opendatacommunities.org/id/metropolitan-district-council/wolverhampton","719527","Water Plus","01895038_3007123011","716.14","Water Charges","190532619","23/11/2018","Corporate Asset Management","Central Utilities to Recharge","R2400"
"Wolverhampton City Council","http://opendatacommunities.org/id/metropolitan-district-council/wolverhampton","719527","Water Plus","01895038_3007530415","19.14","Water Charges","190532630","23/11/2018","Corporate Asset Management","Central Utilities to Recharge","R2400"
"Wolverhampton City Council","http://opendatacommunities.org/id/metropolitan-district-council/wolverhampton","719527","Water Plus","01895038_3007530849","155.41","Water Charges","190532631","23/11/2018","Corporate Asset Management","Central Utilities to Recharge","R2400"
"Wolverhampton City Council","http://opendatacommunities.org/id/metropolitan-district-council/wolverhampton","719527","Water Plus","01895038_3200144092","29.26","Water Charges","190532635","23/11/2018","Corporate Asset Management","Central Utilities to Recharge","R2400"
"Wolverhampton City Council","http://opendatacommunities.org/id/metropolitan-district-council/wolverhampton","719527","Water Plus","01895038_300752668X","172.56","Water Charges","190532643","23/11/2018","Corporate Asset Management","Central Utilities to Recharge","R2400"
"Wolverhampton City Council","http://opendatacommunities.org/id/metropolitan-district-council/wolverhampton","719527","Water Plus","01944041_300623426X","167.83","Water Charges","190532656","23/11/2018","Corporate Asset Management","Central Utilities to Recharge","R2400"
"Wolverhampton City Council","http://opendatacommunities.org/id/metropolitan-district-council/wolverhampton","719527","Water Plus","01893267_3006317882","195.71","Water Charges","190532646","23/11/2018","Corporate Asset Management","Central Utilities to Recharge","R2400"
"Wolverhampton City Council","http://opendatacommunities.org/id/metropolitan-district-council/wolverhampton","719527","Water Plus","01893267_3007790956","195.71","Water Charges","190532652","23/11/2018","Corporate Asset Management","Central Utilities to Recharge","R2400"
"Wolverhampton City Council","http://opendatacommunities.org/id/metropolitan-district-council/wolverhampton","719527","Water Plus","01893267_3007044987","625.74","Water Charges","190532649","23/11/2018","Corporate Asset Management","Central Utilities to Recharge","R2400"
"Wolverhampton City Council","http://opendatacommunities.org/id/metropolitan-district-council/wolverhampton","719527","Water Plus","01944041_3005184293","318.00","Water Charges","190532655","23/11/2018","Corporate Asset Management","Central Utilities to Recharge","R2400"
"Wolverhampton City Council","http://opendatacommunities.org/id/metropolitan-district-council/wolverhampton","719527","Water Plus","01944041_3006521242","51.35","Water Charges","190532659","23/11/2018","Corporate Asset Management","Central Utilities to Recharge","R2400"
"Wolverhampton City Council","http://opendatacommunities.org/id/metropolitan-district-council/wolverhampton","719527","Water Plus","00247128_3005167267","-1,703.43","Water Charges","190532667","23/11/2018","Corporate Asset Management","Central Utilities to Recharge","R2400"
"Wolverhampton City Council","http://opendatacommunities.org/id/metropolitan-district-council/wolverhampton","719527","Water Plus","00090774_3005909263","-3,803.08","Water Charges","190532677","23/11/2018","Corporate Asset Management","Central Utilities to Recharge","R2400"
"Wolverhampton City Council","http://opendatacommunities.org/id/metropolitan-district-council/wolverhampton","719527","Water Plus","00278098_3005600297","-660.18","Water Charges","190532675","23/11/2018","Corporate Asset Management","Central Utilities to Recharge","R2400"
"Wolverhampton City Council","http://opendatacommunities.org/id/metropolitan-district-council/wolverhampton","719527","Water Plus","00120007_3006486102","-434.60","Water Charges","190532685","23/11/2018","Corporate Asset Management","Central Utilities to Recharge","R2400"
"Wolverhampton City Council","http://opendatacommunities.org/id/metropolitan-district-council/wolverhampton","719527","Water Plus","00278097_3006522966","-3,052.90","Water Charges","190532686","23/11/2018","Corporate Asset Management","Central Utilities to Recharge","R2400"
"Wolverhampton City Council","http://opendatacommunities.org/id/metropolitan-district-council/wolverhampton","719527","Water Plus","00278101_3006201876","-83.28","Water Charges","190532680","23/11/2018","Corporate Asset Management","Central Utilities to Recharge","R2400"
"Wolverhampton City Council","http://opendatacommunities.org/id/metropolitan-district-council/wolverhampton","719527","Water Plus","00198713_3006476468","-70.35","Water Charges","190532683","23/11/2018","Corporate Asset Management","Central Utilities to Recharge","R2400"
"Wolverhampton City Council","http://opendatacommunities.org/id/metropolitan-district-council/wolverhampton","719527","Water Plus","00198818_3006751841","-736.60","Water Charges","190532698","23/11/2018","Housing Revenue Account","Amounts to be Settled with Wolverhampton Homes","R2400"
"Wolverhampton City Council","http://opendatacommunities.org/id/metropolitan-district-council/wolverhampton","719527","Water Plus","01948841_3005027791","213.56","Water Charges","190532699","23/11/2018","Corporate Asset Management","Central Utilities to Recharge","R2400"
"Wolverhampton City Council","http://opendatacommunities.org/id/metropolitan-district-council/wolverhampton","719527","Water Plus","01948841_3006451953","268.04","Water Charges","190532776","23/11/2018","Corporate Asset Management","Central Utilities to Recharge","R2400"
"Wolverhampton City Council","http://opendatacommunities.org/id/metropolitan-district-council/wolverhampton","719527","Water Plus","01948841_3005190269","87.72","Water Charges","190532714","23/11/2018","Corporate Asset Management","Central Utilities to Recharge","R2400"
"Wolverhampton City Council","http://opendatacommunities.org/id/metropolitan-district-council/wolverhampton","719527","Water Plus","01948841_3005874516","199.21","Water Charges","190532738","23/11/2018","Corporate Asset Management","Central Utilities to Recharge","R2400"
"Wolverhampton City Council","http://opendatacommunities.org/id/metropolitan-district-council/wolverhampton","719527","Water Plus","01948841_3005559459","295.45","Water Charges","190532726","23/11/2018","Corporate Asset Management","Central Utilities to Recharge","R2400"
"Wolverhampton City Council","http://opendatacommunities.org/id/metropolitan-district-council/wolverhampton","719527","Water Plus","01948841_3005608344","2,672.19","Water Charges","190532732","23/11/2018","Corporate Asset Management","Central Utilities to Recharge","R2400"
"Wolverhampton City Council","http://opendatacommunities.org/id/metropolitan-district-council/wolverhampton","719527","Water Plus","01948841_3005875725","739.96","Water Charges","190532739","23/11/2018","Corporate Asset Management","Central Utilities to Recharge","R2400"
"Wolverhampton City Council","http://opendatacommunities.org/id/metropolitan-district-council/wolverhampton","719527","Water Plus","01948841_3006182952","236.23","Water Charges","190532757","23/11/2018","Corporate Asset Management","Central Utilities to Recharge","R2400"
"Wolverhampton City Council","http://opendatacommunities.org/id/metropolitan-district-council/wolverhampton","719527","Water Plus","01948841_3006043154","13.42","Water Charges","190532750","23/11/2018","Corporate Asset Management","Central Utilities to Recharge","R2400"
"Wolverhampton City Council","http://opendatacommunities.org/id/metropolitan-district-council/wolverhampton","719527","Water Plus","01948841_3006022645","80.61","Water Charges","190532749","23/11/2018","Corporate Asset Management","Central Utilities to Recharge","R2400"
"Wolverhampton City Council","http://opendatacommunities.org/id/metropolitan-district-council/wolverhampton","719527","Water Plus","01948841_3006197925","91.50","Water Charges","190532758","23/11/2018","Corporate Asset Management","Central Utilities to Recharge","R2400"
"Wolverhampton City Council","http://opendatacommunities.org/id/metropolitan-district-council/wolverhampton","719527","Water Plus","01948841_3006353579","203.89","Water Charges","190532771","23/11/2018","Corporate Asset Management","Central Utilities to Recharge","R2400"
"Wolverhampton City Council","http://opendatacommunities.org/id/metropolitan-district-council/wolverhampton","719527","Water Plus","01948841_3006709985","520.24","Water Charges","190532807","23/11/2018","Corporate Asset Management","Central Utilities to Recharge","R2400"
"Wolverhampton City Council","http://opendatacommunities.org/id/metropolitan-district-council/wolverhampton","719527","Water Plus","01948841_3006780779","66.95","Water Charges","190532816","23/11/2018","Facilities Management","Management of Vacant Properties","R2400"
"Wolverhampton City Council","http://opendatacommunities.org/id/metropolitan-district-council/wolverhampton","719527","Water Plus","01948841_3007005043","345.51","Water Charges","190532831","23/11/2018","Corporate Asset Management","Central Utilities to Recharge","R2400"
"Wolverhampton City Council","http://opendatacommunities.org/id/metropolitan-district-council/wolverhampton","719527","Water Plus","01948841_3007037107","134.91","Water Charges","190532835","23/11/2018","Schools","Christ Church (Tettenhall Wood) Infant School","R2400"
"Wolverhampton City Council","http://opendatacommunities.org/id/metropolitan-district-council/wolverhampton","719527","Water Plus","01948841_3007123011","1,408.84","Water Charges","190532839","23/11/2018","Corporate Asset Management","Central Utilities to Recharge","R2400"
"Wolverhampton City Council","http://opendatacommunities.org/id/metropolitan-district-council/wolverhampton","719527","Water Plus","01948841_3007049415","141.69","Water Charges","190532837","23/11/2018","Corporate Asset Management","Central Utilities to Recharge","R2400"
"Wolverhampton City Council","http://opendatacommunities.org/id/metropolitan-district-council/wolverhampton","719527","Water Plus","01948841_3007182182","154.18","Water Charges","190532841","23/11/2018","Corporate Asset Management","Central Utilities to Recharge","R2400"
"Wolverhampton City Council","http://opendatacommunities.org/id/metropolitan-district-council/wolverhampton","719527","Water Plus","01948841_3007238951","167.83","Water Charges","190532845","23/11/2018","Corporate Asset Management","Central Utilities to Recharge","R2400"
"Wolverhampton City Council","http://opendatacommunities.org/id/metropolitan-district-council/wolverhampton","719527","Water Plus","01948841_3006906209","174.32","Water Charges","190532828","23/11/2018","Corporate Asset Management","Central Utilities to Recharge","R2400"
"Wolverhampton City Council","http://opendatacommunities.org/id/metropolitan-district-council/wolverhampton","719527","Water Plus","01948841_3007250447","240.06","Water Charges","190532850","23/11/2018","Corporate Asset Management","Central Utilities to Recharge","R2400"
"Wolverhampton City Council","http://opendatacommunities.org/id/metropolitan-district-council/wolverhampton","719527","Water Plus","01948841_300651467X","49.25","Water Charges","190532862","23/11/2018","Corporate Asset Management","Central Utilities to Recharge","R2400"
"Wolverhampton City Council","http://opendatacommunities.org/id/metropolitan-district-council/wolverhampton","719527","Water Plus","01948841_300590928X","5,651.16","Water Charges","190532861","23/11/2018","Corporate Asset Management","Central Utilities to Recharge","R2400"
"Wolverhampton City Council","http://opendatacommunities.org/id/metropolitan-district-council/wolverhampton","719527","Water Plus","01948841_300663084X","824.03","Water Charges","190532863","23/11/2018","Corporate Asset Management","Central Utilities to Recharge","R2400"
"Wolverhampton City Council","http://opendatacommunities.org/id/metropolitan-district-council/wolverhampton","719527","Water Plus","01837318_3005455114","281.32","Water Charges","190525214","07/11/2018","Schools","St Thomas� Church of England Primary School","R2400"
"Wolverhampton City Council","http://opendatacommunities.org/id/metropolitan-district-council/wolverhampton","719527","Water Plus","01837318_3005456439","633.06","Water Charges","190525217","07/11/2018","Schools","St Andrews Church of England Primary School","R2400"
"Wolverhampton City Council","http://opendatacommunities.org/id/metropolitan-district-council/wolverhampton","719527","Water Plus","01837318_300545343X","553.24","Water Charges","190525251","07/11/2018","Corporate Asset Management","Central Utilities to Recharge","R2400"
"Wolverhampton City Council","http://opendatacommunities.org/id/metropolitan-district-council/wolverhampton","719527","Water Plus","01837318_3005453510","902.52","Water Charges","190525208","07/11/2018","Schools","St Paul�s Church of England (Aided) School","R2400"
"Wolverhampton City Council","http://opendatacommunities.org/id/metropolitan-district-council/wolverhampton","719527","Water Plus","01837318_3005253813","658.84","Water Charges","190525199","07/11/2018","Schools","Bilston Church of England Primary School","R2400"
"Wolverhampton City Council","http://opendatacommunities.org/id/metropolitan-district-council/wolverhampton","719527","Water Plus","01837318_3005611043","41.79","Water Charges","190525225","07/11/2018","Corporate Asset Management","Central Utilities to Recharge","R2400"
"Wolverhampton City Council","http://opendatacommunities.org/id/metropolitan-district-council/wolverhampton","719527","Water Plus","01837318_3005252612","755.06","Water Charges","190525197","07/11/2018","Schools","Stowheath Primary School","R2400"
"Wolverhampton City Council","http://opendatacommunities.org/id/metropolitan-district-council/wolverhampton","719527","Water Plus","01837318_3005472701","612.96","Water Charges","190525223","07/11/2018","Schools","St Luke�s Church of England Aided Primary School","R2400"
"Wolverhampton City Council","http://opendatacommunities.org/id/metropolitan-district-council/wolverhampton","719527","Water Plus","01837318_3005456498","2,031.09","Water Charges","190525218","07/11/2018","Schools","Springdale Primary School","R2400"
"Wolverhampton City Council","http://opendatacommunities.org/id/metropolitan-district-council/wolverhampton","719527","Water Plus","01837318_3006985931","140.47","Water Charges","190525238","07/11/2018","Schools","Westacre Infant School","R2400"
"Wolverhampton City Council","http://opendatacommunities.org/id/metropolitan-district-council/wolverhampton","719527","Water Plus","01837318_3006812638","374.43","Water Charges","190525235","07/11/2018","Schools","St Anthony�s Catholic Primary School","R2400"
"Wolverhampton City Council","http://opendatacommunities.org/id/metropolitan-district-council/wolverhampton","719527","Water Plus","01837318_3007243548","10.93","Water Charges","190525247","07/11/2018","Corporate Asset Management","Central Utilities to Recharge","R2400"
"Wolverhampton City Council","http://opendatacommunities.org/id/metropolitan-district-council/wolverhampton","719527","Water Plus","01837318_3006962710","73.30","Water Charges","190525236","07/11/2018","Schools","Springvale Primary School","R2400"
"Wolverhampton City Council","http://opendatacommunities.org/id/metropolitan-district-council/wolverhampton","719527","Water Plus","01837318_3005456633","6.27","Water Charges","190525220","07/11/2018","Schools","Colton Hills Community School","R2400"
"Wolverhampton City Council","http://opendatacommunities.org/id/metropolitan-district-council/wolverhampton","719527","Water Plus","01837318_3006784677","232.19","Water Charges","190525232","07/11/2018","Schools","Lanesfield Primary School","R2400"
"Wolverhampton City Council","http://opendatacommunities.org/id/metropolitan-district-council/wolverhampton","719527","Water Plus","01837318_3007099110","167.02","Water Charges","190525243","07/11/2018","Schools","Fallings Park Primary School","R2400"
"Wolverhampton City Council","http://opendatacommunities.org/id/metropolitan-district-council/wolverhampton","719527","Water Plus","01837318_3006785819","339.66","Water Charges","190525233","07/11/2018","Schools","Bantock Primary School","R2400"
"Wolverhampton City Council","http://opendatacommunities.org/id/metropolitan-district-council/wolverhampton","719527","Water Plus","01837318_3005454711","556.09","Water Charges","190525209","07/11/2018","Schools","Dovecotes Primary School","R2400"
"Wolverhampton City Council","http://opendatacommunities.org/id/metropolitan-district-council/wolverhampton","719527","Water Plus","01837318_3005455130","49.92","Water Charges","190525215","07/11/2018","Schools","Ashmore Park Nursery","R2400"
"Wolverhampton City Council","http://opendatacommunities.org/id/metropolitan-district-council/wolverhampton","719527","Water Plus","01837318_300525593X","42.33","Water Charges","190525249","07/11/2018","Schools","Phoenix Nursery","R2400"
"Wolverhampton City Council","http://opendatacommunities.org/id/metropolitan-district-council/wolverhampton","719527","Water Plus","01837318_3005702227","3.03","Water Charges","190525227","07/11/2018","Schools","Eastfield Nursery","R2400"
"Wolverhampton City Council","http://opendatacommunities.org/id/metropolitan-district-council/wolverhampton","719527","Water Plus","01837318_3005254038","278.16","Water Charges","190525201","07/11/2018","Schools","West Park Primary School","R2400"
"Wolverhampton City Council","http://opendatacommunities.org/id/metropolitan-district-council/wolverhampton","719527","Water Plus","01837318_3005805786","580.36","Water Charges","190525228","07/11/2018","Schools","Bushbury Hill Primary School","R2400"
"Wolverhampton City Council","http://opendatacommunities.org/id/metropolitan-district-council/wolverhampton","719527","Water Plus","01837318_3005254054","461.28","Water Charges","190525202","07/11/2018","Schools","Warstones Primary School","R2400"
"Wolverhampton City Council","http://opendatacommunities.org/id/metropolitan-district-council/wolverhampton","719527","Water Plus","01837318_3005456625","110.78","Water Charges","190525219","07/11/2018","Corporate Asset Management","Central Utilities to Recharge","R2400"
"Wolverhampton City Council","http://opendatacommunities.org/id/metropolitan-district-council/wolverhampton","719527","Water Plus","01837318_3005454843","159.66","Water Charges","190525211","07/11/2018","Schools","Christ Church (Tettenhall Wood) Infant School","R2400"
"Wolverhampton City Council","http://opendatacommunities.org/id/metropolitan-district-council/wolverhampton","719527","Water Plus","01837318_3005453448","297.00","Water Charges","190525207","07/11/2018","Schools","St Michael�s Church of England Primary School","R2400"
"Wolverhampton City Council","http://opendatacommunities.org/id/metropolitan-district-council/wolverhampton","719527","Water Plus","01914704_3005455130","62.49","Water Charges","190532437","23/11/2018","Schools","Ashmore Park Nursery","R2400"
"Wolverhampton City Council","http://opendatacommunities.org/id/metropolitan-district-council/wolverhampton","719527","Water Plus","01914704_300557850X","35.68","Water Charges","190532417","23/11/2018","Facilities Management","Management of Vacant Properties","R2400"
"Wolverhampton City Council","http://opendatacommunities.org/id/metropolitan-district-council/wolverhampton","719527","Water Plus","01895038_3005121909","44.15","Water Charges","190532514","23/11/2018","Corporate Asset Management","Central Utilities to Recharge","R2400"
"Wolverhampton City Council","http://opendatacommunities.org/id/metropolitan-district-council/wolverhampton","719527","Water Plus","01895038_3005177580","144.01","Water Charges","190532516","23/11/2018","Corporate Asset Management","Central Utilities to Recharge","R2400"
"Wolverhampton City Council","http://opendatacommunities.org/id/metropolitan-district-council/wolverhampton","719527","Water Plus","01895038_3005965244","41.03","Water Charges","190532545","23/11/2018","Corporate Asset Management","Central Utilities to Recharge","R2400"
"Wolverhampton City Council","http://opendatacommunities.org/id/metropolitan-district-council/wolverhampton","719527","Water Plus","01895038_3006482549","98.73","Water Charges","190532581","23/11/2018","Corporate Asset Management","Central Utilities to Recharge","R2400"
"Wolverhampton City Council","http://opendatacommunities.org/id/metropolitan-district-council/wolverhampton","719527","Water Plus","01895038_3006519310","330.24","Water Charges","190532586","23/11/2018","Corporate Asset Management","Central Utilities to Recharge","R2400"
"Wolverhampton City Council","http://opendatacommunities.org/id/metropolitan-district-council/wolverhampton","719527","Water Plus","01895038_3006486102","74.78","Water Charges","190532582","23/11/2018","Corporate Asset Management","Central Utilities to Recharge","R2400"
"Wolverhampton City Council","http://opendatacommunities.org/id/metropolitan-district-council/wolverhampton","719527","Water Plus","01895038_3006476719","33.00","Water Charges","190532578","23/11/2018","Corporate Asset Management","Central Utilities to Recharge","R2400"
"Wolverhampton City Council","http://opendatacommunities.org/id/metropolitan-district-council/wolverhampton","719527","Water Plus","01895038_3006512707","72.01","Water Charges","190532583","23/11/2018","Corporate Asset Management","Central Utilities to Recharge","R2400"
"Wolverhampton City Council","http://opendatacommunities.org/id/metropolitan-district-council/wolverhampton","719527","Water Plus","01895038_3006630890","85.09","Water Charges","190532592","23/11/2018","Corporate Asset Management","Central Utilities to Recharge","R2400"
"Wolverhampton City Council","http://opendatacommunities.org/id/metropolitan-district-council/wolverhampton","719527","Water Plus","01895038_3006747704","108.95","Water Charges","190532600","23/11/2018","Corporate Asset Management","Central Utilities to Recharge","R2400"
"Wolverhampton City Council","http://opendatacommunities.org/id/metropolitan-district-council/wolverhampton","719527","Water Plus","01895038_3006934962","351.89","Water Charges","190532613","23/11/2018","Corporate Asset Management","Central Utilities to Recharge","R2400"
"Wolverhampton City Council","http://opendatacommunities.org/id/metropolitan-district-council/wolverhampton","719527","Water Plus","01895038_300679088X","313.72","Water Charges","190532641","23/11/2018","Corporate Asset Management","Central Utilities to Recharge","R2400"
"Wolverhampton City Council","http://opendatacommunities.org/id/metropolitan-district-council/wolverhampton","719527","Water Plus","01895038_300560019X","46.81","Water Charges","190532638","23/11/2018","Corporate Asset Management","Central Utilities to Recharge","R2400"
"Wolverhampton City Council","http://opendatacommunities.org/id/metropolitan-district-council/wolverhampton","719527","Water Plus","01895038_3007250331","105.32","Water Charges","190532627","23/11/2018","Corporate Asset Management","Central Utilities to Recharge","R2400"
"Wolverhampton City Council","http://opendatacommunities.org/id/metropolitan-district-council/wolverhampton","719527","Water Plus","01893267_3006521242","101.04","Water Charges","190532647","23/11/2018","Corporate Asset Management","Central Utilities to Recharge","R2400"
"Wolverhampton City Council","http://opendatacommunities.org/id/metropolitan-district-council/wolverhampton","719527","Water Plus","01944041_3006317882","99.46","Water Charges","190532658","23/11/2018","Corporate Asset Management","Central Utilities to Recharge","R2400"
"Wolverhampton City Council","http://opendatacommunities.org/id/metropolitan-district-council/wolverhampton","719527","Water Plus","01944041_3006835913","318.00","Water Charges","190532660","23/11/2018","Corporate Asset Management","Central Utilities to Recharge","R2400"
"Wolverhampton City Council","http://opendatacommunities.org/id/metropolitan-district-council/wolverhampton","719527","Water Plus","01944041_3007238781","37.66","Water Charges","190532663","23/11/2018","Corporate Asset Management","Central Utilities to Recharge","R2400"
"Wolverhampton City Council","http://opendatacommunities.org/id/metropolitan-district-council/wolverhampton","719527","Water Plus","01948841_3005177610","34.66","Water Charges","190532711","23/11/2018","Corporate Asset Management","Central Utilities to Recharge","R2400"
"Wolverhampton City Council","http://opendatacommunities.org/id/metropolitan-district-council/wolverhampton","719527","Water Plus","01948841_3005188965","58.77","Water Charges","190532713","23/11/2018","Corporate Asset Management","Central Utilities to Recharge","R2400"
"Wolverhampton City Council","http://opendatacommunities.org/id/metropolitan-district-council/wolverhampton","719527","Water Plus","01948841_3006170512","86.65","Water Charges","190532753","23/11/2018","Corporate Asset Management","Central Utilities to Recharge","R2400"
"Wolverhampton City Council","http://opendatacommunities.org/id/metropolitan-district-council/wolverhampton","719527","Water Plus","01948841_3006091132","353.12","Water Charges","190532752","23/11/2018","Corporate Asset Management","Central Utilities to Recharge","R2400"
"Wolverhampton City Council","http://opendatacommunities.org/id/metropolitan-district-council/wolverhampton","719527","Water Plus","01948841_3006201752","122.26","Water Charges","190532760","23/11/2018","Corporate Asset Management","Central Utilities to Recharge","R2400"
"Wolverhampton City Council","http://opendatacommunities.org/id/metropolitan-district-council/wolverhampton","719527","Water Plus","01948841_3006170814","99.46","Water Charges","190532755","23/11/2018","Corporate Asset Management","Central Utilities to Recharge","R2400"
"Wolverhampton City Council","http://opendatacommunities.org/id/metropolitan-district-council/wolverhampton","719527","Water Plus","01948841_3006616073","108.87","Water Charges","190532802","23/11/2018","Corporate Asset Management","Central Utilities to Recharge","R2400"
"Wolverhampton City Council","http://opendatacommunities.org/id/metropolitan-district-council/wolverhampton","719527","Water Plus","01948841_3006522966","70.99","Water Charges","190532798","23/11/2018","Corporate Asset Management","Central Utilities to Recharge","R2400"
"Wolverhampton City Council","http://opendatacommunities.org/id/metropolitan-district-council/wolverhampton","719527","Water Plus","01948841_3006742052","43.12","Water Charges","190532811","23/11/2018","Corporate Asset Management","Central Utilities to Recharge","R2400"
"Wolverhampton City Council","http://opendatacommunities.org/id/metropolitan-district-council/wolverhampton","719527","Water Plus","01948841_3006906047","46.42","Water Charges","190532827","23/11/2018","Corporate Asset Management","Central Utilities to Recharge","R2400"
"Wolverhampton City Council","http://opendatacommunities.org/id/metropolitan-district-council/wolverhampton","719527","Water Plus","01948841_3006837851","366.06","Water Charges","190532819","23/11/2018","Facilities Management","Management of Vacant Properties","R2400"
"Wolverhampton City Council","http://opendatacommunities.org/id/metropolitan-district-council/wolverhampton","719527","Water Plus","01948841_3006897285","376.82","Water Charges","190532823","23/11/2018","Corporate Asset Management","Central Utilities to Recharge","R2400"
"Wolverhampton City Council","http://opendatacommunities.org/id/metropolitan-district-council/wolverhampton","719527","Water Plus","01948841_300560019X","117.87","Water Charges","190532860","23/11/2018","Corporate Asset Management","Central Utilities to Recharge","R2400"
"Wolverhampton City Council","http://opendatacommunities.org/id/metropolitan-district-council/wolverhampton","719527","Water Plus","01837318_300681262X","385.61","Water Charges","190525255","07/11/2018","Schools","Christ Church (Church of England) Junior School","R2400"
"Wolverhampton City Council","http://opendatacommunities.org/id/metropolitan-district-council/wolverhampton","719527","Water Plus","01837318_3005455092","345.40","Water Charges","190525213","07/11/2018","Schools","Long Knowle Primary School","R2400"
"Wolverhampton City Council","http://opendatacommunities.org/id/metropolitan-district-council/wolverhampton","719527","Water Plus","01837318_3005634353","547.90","Water Charges","190525226","07/11/2018","Schools","Trinity Church of England Primary School","R2400"
"Wolverhampton City Council","http://opendatacommunities.org/id/metropolitan-district-council/wolverhampton","719527","Water Plus","01837318_3005218902","647.90","Water Charges","190525195","07/11/2018","Schools","Bushbury Hill Primary School","R2400"
"Wolverhampton City Council","http://opendatacommunities.org/id/metropolitan-district-council/wolverhampton","719527","Water Plus","01837318_3005253988","718.92","Water Charges","190525200","07/11/2018","Corporate Asset Management","Central Utilities to Recharge","R2400"
"Wolverhampton City Council","http://opendatacommunities.org/id/metropolitan-district-council/wolverhampton","719527","Water Plus","01837318_3005254194","172.98","Water Charges","190525204","07/11/2018","Corporate Asset Management","Central Utilities to Recharge","R2400"
"Wolverhampton City Council","http://opendatacommunities.org/id/metropolitan-district-council/wolverhampton","719527","Water Plus","01837318_3005250326","1,553.15","Water Charges","190525196","07/11/2018","Corporate Asset Management","Central Utilities to Recharge","R2400"
"Wolverhampton City Council","http://opendatacommunities.org/id/metropolitan-district-council/wolverhampton","719527","Water Plus","01837318_3006801555","284.10","Water Charges","190525234","07/11/2018","Corporate Asset Management","Central Utilities to Recharge","R2400"
"Wolverhampton City Council","http://opendatacommunities.org/id/metropolitan-district-council/wolverhampton","719527","Water Plus","01837318_3005255301","8.81","Water Charges","190525206","07/11/2018","Corporate Asset Management","Central Utilities to Recharge","R2400"
"Wolverhampton City Council","http://opendatacommunities.org/id/metropolitan-district-council/wolverhampton","719527","Water Plus","01837318_3007001072","52.45","Water Charges","190525239","07/11/2018","Schools","Bushbury Nursery","R2400"
"Wolverhampton City Council","http://opendatacommunities.org/id/metropolitan-district-council/wolverhampton","719527","Water Plus","01837318_3005454762","595.24","Water Charges","190525210","07/11/2018","Schools","Oak Meadow Primary School","R2400"
"Wolverhampton City Council","http://opendatacommunities.org/id/metropolitan-district-council/wolverhampton","719527","Water Plus","01837318_3007160103","1,221.00","Water Charges","190525246","07/11/2018","Schools","Rakegate Primary School","R2400"
"Wolverhampton City Council","http://opendatacommunities.org/id/metropolitan-district-council/wolverhampton","719527","Water Plus","01837318_3007100275","1,887.00","Water Charges","190525244","07/11/2018","Schools","Tettenhall Wood Special School","R2400"
"Wolverhampton City Council","http://opendatacommunities.org/id/metropolitan-district-council/wolverhampton","719527","Water Plus","01837318_3005470946","552.24","Water Charges","190525221","07/11/2018","Schools","Holy Trinity Catholic Primary School","R2400"
"Wolverhampton City Council","http://opendatacommunities.org/id/metropolitan-district-council/wolverhampton","719527","Water Plus","01837318_3007314372","3.16","Water Charges","190525248","07/11/2018","Corporate Asset Management","Central Utilities to Recharge","R2400"
"Wolverhampton City Council","http://opendatacommunities.org/id/metropolitan-district-council/wolverhampton","719527","Water Plus","01837318_3005471462","5,279.37","Water Charges","190525222","07/11/2018","Corporate Asset Management","Central Utilities to Recharge","R2400"
"Wolverhampton City Council","http://opendatacommunities.org/id/metropolitan-district-council/wolverhampton","719527","Water Plus","01837318_300543639X","57.90","Water Charges","190525250","07/11/2018","Corporate Asset Management","Central Utilities to Recharge","R2400"
"Wolverhampton City Council","http://opendatacommunities.org/id/metropolitan-district-council/wolverhampton","719527","Water Plus","01837318_300680158X","50.38","Water Charges","190525254","07/11/2018","Schools","Eastfield Nursery","R2400"
"Wolverhampton City Council","http://opendatacommunities.org/id/metropolitan-district-council/wolverhampton","719527","Water Plus","01837318_3005456307","23.96","Water Charges","190525216","07/11/2018","Corporate Asset Management","Central Utilities to Recharge","R2400"
"Wolverhampton City Council","http://opendatacommunities.org/id/metropolitan-district-council/wolverhampton","719527","Water Plus","01837318_3005254224","468.68","Water Charges","190525205","07/11/2018","Schools","Merridale Primary School","R2400"
"Wolverhampton City Council","http://opendatacommunities.org/id/metropolitan-district-council/wolverhampton","719527","Water Plus","01837318_300705494X","158.50","Water Charges","190525256","07/11/2018","Schools","Springvale Primary School","R2400"
"Wolverhampton City Council","http://opendatacommunities.org/id/metropolitan-district-council/wolverhampton","719527","Water Plus","01837318_3005475425","540.40","Water Charges","190525224","07/11/2018","Schools","Fallings Park Primary School","R2400"
"Wolverhampton City Council","http://opendatacommunities.org/id/metropolitan-district-council/wolverhampton","719527","Water Plus","01837318_3005254100","283.34","Water Charges","190525203","07/11/2018","Schools","Uplands Junior School","R2400"
"Wolverhampton City Council","http://opendatacommunities.org/id/metropolitan-district-council/wolverhampton","719527","Water Plus","01837318_3005455076","264.56","Water Charges","190525212","07/11/2018","Schools","St Patrick�s Catholic Primary School","R2400"
"Wolverhampton City Council","http://opendatacommunities.org/id/metropolitan-district-council/wolverhampton","719527","Water Plus","01837318_3007097886","744.45","Water Charges","190525242","07/11/2018","Corporate Asset Management","Central Utilities to Recharge","R2400"
"Wolverhampton City Council","http://opendatacommunities.org/id/metropolitan-district-council/wolverhampton","719527","Water Plus","01837318_3006962737","1,534.61","Water Charges","190525237","07/11/2018","Schools","Colton Hills Community School","R2400"
"Wolverhampton City Council","http://opendatacommunities.org/id/metropolitan-district-council/wolverhampton","719527","Water Plus","01837318_300557850X","34.53","Water Charges","190525253","07/11/2018","Facilities Management","Management of Vacant Properties","R2400"
"Wolverhampton City Council","http://opendatacommunities.org/id/metropolitan-district-council/wolverhampton","719527","Water Plus","01837318_3005167267","1,660.85","Water Charges","190525193","07/11/2018","Corporate Asset Management","Central Utilities to Recharge","R2400"
"Wolverhampton City Council","http://opendatacommunities.org/id/metropolitan-district-council/wolverhampton","719527","Water Plus","01837318_3006694953","405.07","Water Charges","190525231","07/11/2018","Schools","Wood End Primary School","R2400"
"Wolverhampton City Council","http://opendatacommunities.org/id/metropolitan-district-council/wolverhampton","719527","Water Plus","01837318_3005016102","42.44","Water Charges","190525192","07/11/2018","Schools","Holy Trinity Catholic Primary School","R2400"
"Wolverhampton City Council","http://opendatacommunities.org/id/metropolitan-district-council/wolverhampton","719527","Water Plus","01837318_3007146836","112.60","Water Charges","190525245","07/11/2018","Schools","Whitgreave Infant School","R2400"
"Wolverhampton City Council","http://opendatacommunities.org/id/metropolitan-district-council/wolverhampton","719527","Water Plus","01837318_3007007682","436.58","Water Charges","190525240","07/11/2018","Schools","Bilston Nursery","R2400"
"Wolverhampton City Council","http://opendatacommunities.org/id/metropolitan-district-council/wolverhampton","719527","Water Plus","01837318_3006171012","24.22","Water Charges","190525230","07/11/2018","Corporate Asset Management","Central Utilities to Recharge","R2400"
"Wolverhampton City Council","http://opendatacommunities.org/id/metropolitan-district-council/wolverhampton","719527","Water Plus","01837318_300545665X","1,750.22","Water Charges","190525252","07/11/2018","Schools","Claregate Primary School","R2400"
"Wolverhampton City Council","http://opendatacommunities.org/id/metropolitan-district-council/wolverhampton","719527","Water Plus","01837318_3005198146","56.97","Water Charges","190525194","07/11/2018","Schools","St Anthony�s Catholic Primary School","R2400"
"Wolverhampton City Council","http://opendatacommunities.org/id/metropolitan-district-council/wolverhampton","719527","Water Plus","01837318_3005252698","425.91","Water Charges","190525198","07/11/2018","Schools","Loxdale Primary School","R2400"
"Wolverhampton City Council","http://opendatacommunities.org/id/metropolitan-district-council/wolverhampton","719527","Water Plus","01837318_3005909301","849.83","Water Charges","190525229","07/11/2018","Corporate Asset Management","Central Utilities to Recharge","R2400"
"Wolverhampton City Council","http://opendatacommunities.org/id/metropolitan-district-council/wolverhampton","719527","Water Plus","01837318_3007055962","2,494.01","Water Charges","190525241","07/11/2018","Schools","Wilkinson Primary School","R2400"
"Wolverhampton City Council","http://opendatacommunities.org/id/metropolitan-district-council/wolverhampton","719527","Water Plus","01914704_3005254062","2,376.23","Water Charges","190532445","23/11/2018","Schools","Castlecroft Primary School","R2400"
"Wolverhampton City Council","http://opendatacommunities.org/id/metropolitan-district-council/wolverhampton","719527","Water Plus","01895038_3005789225","23.36","Water Charges","190532426","23/11/2018","Estates and Valuations","Industrial Premises ; Loxdale Park","R2400"
"Wolverhampton City Council","http://opendatacommunities.org/id/metropolitan-district-council/wolverhampton","719527","Water Plus","01914704_3005454843","166.50","Water Charges","190532431","23/11/2018","Schools","Christ Church (Tettenhall Wood) Infant School","R2400"
"Wolverhampton City Council","http://opendatacommunities.org/id/metropolitan-district-council/wolverhampton","719527","Water Plus","01914704_300680158X","53.50","Water Charges","190532441","23/11/2018","Schools","Eastfield Nursery","R2400"
"Wolverhampton City Council","http://opendatacommunities.org/id/metropolitan-district-council/wolverhampton","719527","Water Plus","01914704_3007007682","247.68","Water Charges","190532443","23/11/2018","Schools","Bilston Nursery","R2400"
"Wolverhampton City Council","http://opendatacommunities.org/id/metropolitan-district-council/wolverhampton","719527","Water Plus","01914704_3006171012","25.03","Water Charges","190532498","23/11/2018","Corporate Asset Management","Central Utilities to Recharge","R2400"
"Wolverhampton City Council","http://opendatacommunities.org/id/metropolitan-district-council/wolverhampton","719527","Water Plus","01914704_300545665X","1,808.54","Water Charges","190532446","23/11/2018","Schools","Claregate Primary School","R2400"
"Wolverhampton City Council","http://opendatacommunities.org/id/metropolitan-district-council/wolverhampton","719527","Water Plus","01914704_3007097886","766.83","Water Charges","190532500","23/11/2018","Corporate Asset Management","Central Utilities to Recharge","R2400"
"Wolverhampton City Council","http://opendatacommunities.org/id/metropolitan-district-council/wolverhampton","719527","Water Plus","01895038_3005730956","15.95","Water Charges","190532425","23/11/2018","Estates and Valuations","Industrial Premises ; Loxdale Park","R2400"
"Wolverhampton City Council","http://opendatacommunities.org/id/metropolitan-district-council/wolverhampton","719527","Water Plus","01895038_3006837851","185.79","Water Charges","190532420","23/11/2018","Facilities Management","Management of Vacant Properties","R2400"
"Wolverhampton City Council","http://opendatacommunities.org/id/metropolitan-district-council/wolverhampton","719527","Water Plus","01895038_3006451821","17.62","Water Charges","190532427","23/11/2018","Estates and Valuations","Industrial Premises ; Loxdale Park","R2400"
"Wolverhampton City Council","http://opendatacommunities.org/id/metropolitan-district-council/wolverhampton","719527","Water Plus","01895038_300559209X","44.15","Water Charges","190532421","23/11/2018","Facilities Management","Management of Vacant Properties","R2400"
"Wolverhampton City Council","http://opendatacommunities.org/id/metropolitan-district-council/wolverhampton","719527","Water Plus","01914704_3006694953","418.08","Water Charges","190532458","23/11/2018","Schools","Wood End Primary School","R2400"
"Wolverhampton City Council","http://opendatacommunities.org/id/metropolitan-district-council/wolverhampton","719527","Water Plus","01914704_3005456439","654.84","Water Charges","190532477","23/11/2018","Schools","St Andrews Church of England Primary School","R2400"
"Wolverhampton City Council","http://opendatacommunities.org/id/metropolitan-district-council/wolverhampton","719527","Water Plus","01914704_3005455076","273.72","Water Charges","190532465","23/11/2018","Schools","St Patrick�s Catholic Primary School","R2400"
"Wolverhampton City Council","http://opendatacommunities.org/id/metropolitan-district-council/wolverhampton","719527","Water Plus","01914704_3005453448","305.30","Water Charges","190532464","23/11/2018","Schools","St Michael�s Church of England Primary School","R2400"
"Wolverhampton City Council","http://opendatacommunities.org/id/metropolitan-district-council/wolverhampton","719527","Water Plus","01895038_3005111903","232.50","Water Charges","190532513","23/11/2018","Corporate Asset Management","Central Utilities to Recharge","R2400"
"Wolverhampton City Council","http://opendatacommunities.org/id/metropolitan-district-council/wolverhampton","719527","Water Plus","01895038_3005064034","324.49","Water Charges","190532508","23/11/2018","Corporate Asset Management","Central Utilities to Recharge","R2400"
"Wolverhampton City Council","http://opendatacommunities.org/id/metropolitan-district-council/wolverhampton","719527","Water Plus","00193055_3005254038","-1,793.44","Water Charges","190532473","23/11/2018","Schools","West Park Primary School","R2400"
"Wolverhampton City Council","http://opendatacommunities.org/id/metropolitan-district-council/wolverhampton","719527","Water Plus","01914704_3005253813","586.78","Water Charges","190532471","23/11/2018","Schools","Bilston Church of England Primary School","R2400"
"Wolverhampton City Council","http://opendatacommunities.org/id/metropolitan-district-council/wolverhampton","719527","Water Plus","01895038_3005172856","898.57","Water Charges","190532515","23/11/2018","Corporate Asset Management","Central Utilities to Recharge","R2400"
"Wolverhampton City Council","http://opendatacommunities.org/id/metropolitan-district-council/wolverhampton","719527","Water Plus","01914704_3006785819","349.71","Water Charges","190532476","23/11/2018","Schools","Bantock Primary School","R2400"
"Wolverhampton City Council","http://opendatacommunities.org/id/metropolitan-district-council/wolverhampton","719527","Water Plus","01895038_3005437248","747.39","Water Charges","190532524","23/11/2018","Corporate Asset Management","Central Utilities to Recharge","R2400"
"Wolverhampton City Council","http://opendatacommunities.org/id/metropolitan-district-council/wolverhampton","719527","Water Plus","01895038_3005502597","427.19","Water Charges","190532527","23/11/2018","Corporate Asset Management","Central Utilities to Recharge","R2400"
"Wolverhampton City Council","http://opendatacommunities.org/id/metropolitan-district-council/wolverhampton","719527","Water Plus","01895038_3005580059","212.38","Water Charges","190532531","23/11/2018","Corporate Asset Management","Central Utilities to Recharge","R2400"
"Wolverhampton City Council","http://opendatacommunities.org/id/metropolitan-district-council/wolverhampton","719527","Water Plus","01895038_3005593908","59.34","Water Charges","190532533","23/11/2018","Corporate Asset Management","Central Utilities to Recharge","R2400"
"Wolverhampton City Council","http://opendatacommunities.org/id/metropolitan-district-council/wolverhampton","719527","Water Plus","01895038_3005986497","525.11","Water Charges","190532546","23/11/2018","Corporate Asset Management","Central Utilities to Recharge","R2400"
"Wolverhampton City Council","http://opendatacommunities.org/id/metropolitan-district-council/wolverhampton","719527","Water Plus","01895038_3005907945","1,010.70","Water Charges","190532542","23/11/2018","Corporate Asset Management","Central Utilities to Recharge","R2400"
"Wolverhampton City Council","http://opendatacommunities.org/id/metropolitan-district-council/wolverhampton","719527","Water Plus","01895038_3006170563","98.56","Water Charges","190532552","23/11/2018","Corporate Asset Management","Central Utilities to Recharge","R2400"
"Wolverhampton City Council","http://opendatacommunities.org/id/metropolitan-district-council/wolverhampton","719527","Water Plus","01895038_3006199375","40.95","Water Charges","190532557","23/11/2018","Corporate Asset Management","Central Utilities to Recharge","R2400"
"Wolverhampton City Council","http://opendatacommunities.org/id/metropolitan-district-council/wolverhampton","719527","Water Plus","01895038_3006197925","46.13","Water Charges","190532556","23/11/2018","Corporate Asset Management","Central Utilities to Recharge","R2400"
"Wolverhampton City Council","http://opendatacommunities.org/id/metropolitan-district-council/wolverhampton","719527","Water Plus","01895038_3006353579","120.16","Water Charges","190532566","23/11/2018","Corporate Asset Management","Central Utilities to Recharge","R2400"
"Wolverhampton City Council","http://opendatacommunities.org/id/metropolitan-district-council/wolverhampton","719527","Water Plus","01895038_3006314808","2,933.30","Water Charges","190532562","23/11/2018","Corporate Asset Management","Central Utilities to Recharge","R2400"
"Wolverhampton City Council","http://opendatacommunities.org/id/metropolitan-district-council/wolverhampton","719527","Water Plus","01895038_3006473213","2,066.08","Water Charges","190532573","23/11/2018","Corporate Asset Management","Central Utilities to Recharge","R2400"
"Wolverhampton City Council","http://opendatacommunities.org/id/metropolitan-district-council/wolverhampton","719527","Water Plus","01895038_3006476751","13.31","Water Charges","190532579","23/11/2018","Corporate Asset Management","Central Utilities to Recharge","R2400"
"Wolverhampton City Council","http://opendatacommunities.org/id/metropolitan-district-council/wolverhampton","719527","Water Plus","01895038_3006476573","6.60","Water Charges","190532576","23/11/2018","Corporate Asset Management","Central Utilities to Recharge","R2400"
"Wolverhampton City Council","http://opendatacommunities.org/id/metropolitan-district-council/wolverhampton","719527","Water Plus","01895038_3006473019","99.13","Water Charges","190532571","23/11/2018","Corporate Asset Management","Central Utilities to Recharge","R2400"
"Wolverhampton City Council","http://opendatacommunities.org/id/metropolitan-district-council/wolverhampton","719527","Water Plus","01895038_3006475054","52.03","Water Charges","190532575","23/11/2018","Corporate Asset Management","Central Utilities to Recharge","R2400"
"Wolverhampton City Council","http://opendatacommunities.org/id/metropolitan-district-council/wolverhampton","719527","Water Plus","01895038_3006616014","194.85","Water Charges","190532589","23/11/2018","Corporate Asset Management","Central Utilities to Recharge","R2400"
"Wolverhampton City Council","http://opendatacommunities.org/id/metropolitan-district-council/wolverhampton","719527","Water Plus","01895038_3006762371","23.43","Water Charges","190532601","23/11/2018","Corporate Asset Management","Central Utilities to Recharge","R2400"
"Wolverhampton City Council","http://opendatacommunities.org/id/metropolitan-district-council/wolverhampton","719527","Water Plus","01895038_3006685237","54.27","Water Charges","190532594","23/11/2018","Corporate Asset Management","Central Utilities to Recharge","R2400"
"Wolverhampton City Council","http://opendatacommunities.org/id/metropolitan-district-council/wolverhampton","719527","Water Plus","01895038_3006711610","22.68","Water Charges","190532595","23/11/2018","Corporate Asset Management","Central Utilities to Recharge","R2400"
"Wolverhampton City Council","http://opendatacommunities.org/id/metropolitan-district-council/wolverhampton","719527","Water Plus","01895038_3006738748","164.33","Water Charges","190532597","23/11/2018","Corporate Asset Management","Central Utilities to Recharge","R2400"
"Wolverhampton City Council","http://opendatacommunities.org/id/metropolitan-district-council/wolverhampton","719527","Water Plus","01895038_3006742052","21.67","Water Charges","190532598","23/11/2018","Corporate Asset Management","Central Utilities to Recharge","R2400"
"Wolverhampton City Council","http://opendatacommunities.org/id/metropolitan-district-council/wolverhampton","719527","Water Plus","01895038_3006636503","471.67","Water Charges","190532593","23/11/2018","Corporate Asset Management","Central Utilities to Recharge","R2400"
"Wolverhampton City Council","http://opendatacommunities.org/id/metropolitan-district-council/wolverhampton","719527","Water Plus","01895038_3007005760","30.52","Water Charges","190532615","23/11/2018","Corporate Asset Management","Central Utilities to Recharge","R2400"
"Wolverhampton City Council","http://opendatacommunities.org/id/metropolitan-district-council/wolverhampton","719527","Water Plus","01895038_3006897285","195.02","Water Charges","190532607","23/11/2018","Corporate Asset Management","Central Utilities to Recharge","R2400"
"Wolverhampton City Council","http://opendatacommunities.org/id/metropolitan-district-council/wolverhampton","719527","Water Plus","01895038_3007193869","49.22","Water Charges","190532622","23/11/2018","Corporate Asset Management","Central Utilities to Recharge","R2400"
"Wolverhampton City Council","http://opendatacommunities.org/id/metropolitan-district-council/wolverhampton","719527","Water Plus","01895038_3007193850","46.68","Water Charges","190532621","23/11/2018","Corporate Asset Management","Central Utilities to Recharge","R2400"
"Wolverhampton City Council","http://opendatacommunities.org/id/metropolitan-district-council/wolverhampton","719527","Water Plus","01895038_3006906209","343.00","Water Charges","190532612","23/11/2018","Corporate Asset Management","Central Utilities to Recharge","R2400"
"Wolverhampton City Council","http://opendatacommunities.org/id/metropolitan-district-council/wolverhampton","719527","Water Plus","01895038_3007237602","330.24","Water Charges","190532623","23/11/2018","Corporate Asset Management","Central Utilities to Recharge","R2400"
"Wolverhampton City Council","http://opendatacommunities.org/id/metropolitan-district-council/wolverhampton","719527","Water Plus","01895038_3007182182","78.52","Water Charges","190532620","23/11/2018","Corporate Asset Management","Central Utilities to Recharge","R2400"
"Wolverhampton City Council","http://opendatacommunities.org/id/metropolitan-district-council/wolverhampton","719527","Water Plus","01895038_3007049415","72.01","Water Charges","190532617","23/11/2018","Corporate Asset Management","Central Utilities to Recharge","R2400"
"Wolverhampton City Council","http://opendatacommunities.org/id/metropolitan-district-council/wolverhampton","719527","Water Plus","01895038_3007108225","406.26","Water Charges","190532618","23/11/2018","Corporate Asset Management","Central Utilities to Recharge","R2400"
"Wolverhampton City Council","http://opendatacommunities.org/id/metropolitan-district-council/wolverhampton","719527","Water Plus","01895038_300548999X","61.09","Water Charges","190532637","23/11/2018","Corporate Asset Management","Central Utilities to Recharge","R2400"
"Wolverhampton City Council","http://opendatacommunities.org/id/metropolitan-district-council/wolverhampton","719527","Water Plus","01895038_300548825X","150.67","Water Charges","190532636","23/11/2018","Corporate Asset Management","Central Utilities to Recharge","R2400"
"Wolverhampton City Council","http://opendatacommunities.org/id/metropolitan-district-council/wolverhampton","719527","Water Plus","01895038_300663084X","9,438.59","Water Charges","190532640","23/11/2018","Corporate Asset Management","Central Utilities to Recharge","R2400"
"Wolverhampton City Council","http://opendatacommunities.org/id/metropolitan-district-council/wolverhampton","719527","Water Plus","01893267_3005184293","625.74","Water Charges","190532644","23/11/2018","Corporate Asset Management","Central Utilities to Recharge","R2400"
"Wolverhampton City Council","http://opendatacommunities.org/id/metropolitan-district-council/wolverhampton","719527","Water Plus","01893267_3006234359","32.98","Water Charges","190532645","23/11/2018","Corporate Asset Management","Central Utilities to Recharge","R2400"
"Wolverhampton City Council","http://opendatacommunities.org/id/metropolitan-district-council/wolverhampton","719527","Water Plus","01944041_3007044987","318.00","Water Charges","190532661","23/11/2018","Corporate Asset Management","Central Utilities to Recharge","R2400"
"Wolverhampton City Council","http://opendatacommunities.org/id/metropolitan-district-council/wolverhampton","719527","Water Plus","00278096_3005537951","-249.16","Water Charges","190532671","23/11/2018","Corporate Asset Management","Central Utilities to Recharge","R2400"
"Wolverhampton City Council","http://opendatacommunities.org/id/metropolitan-district-council/wolverhampton","719527","Water Plus","00198692_3005474925","-22,006.69","Water Charges","190532670","23/11/2018","Corporate Asset Management","Central Utilities to Recharge","R2400"
"Wolverhampton City Council","http://opendatacommunities.org/id/metropolitan-district-council/wolverhampton","719527","Water Plus","00136081_3005908062","-2,300.13","Water Charges","190532676","23/11/2018","Corporate Asset Management","Central Utilities to Recharge","R2400"
"Wolverhampton City Council","http://opendatacommunities.org/id/metropolitan-district-council/wolverhampton","719527","Water Plus","00211191_3005583511","-1,593.91","Water Charges","190532674","23/11/2018","Corporate Asset Management","Central Utilities to Recharge","R2400"
"Wolverhampton City Council","http://opendatacommunities.org/id/metropolitan-district-council/wolverhampton","719527","Water Plus","00090631_3005456625","-527.88","Water Charges","190532669","23/11/2018","Corporate Asset Management","Central Utilities to Recharge","R2400"
"Wolverhampton City Council","http://opendatacommunities.org/id/metropolitan-district-council/wolverhampton","719527","Water Plus","00278095_300681911X","-113.41","Water Charges","190532688","23/11/2018","Corporate Asset Management","Central Utilities to Recharge","R2400"
"Wolverhampton City Council","http://opendatacommunities.org/id/metropolitan-district-council/wolverhampton","719527","Water Plus","00100340_3007530849","-297.46","Water Charges","190532696","23/11/2018","Corporate Asset Management","Central Utilities to Recharge","R2400"
"Wolverhampton City Council","http://opendatacommunities.org/id/metropolitan-district-council/wolverhampton","719527","Water Plus","00198823_3006897285","-1,045.34","Water Charges","190532690","23/11/2018","Corporate Asset Management","Central Utilities to Recharge","R2400"
"Wolverhampton City Council","http://opendatacommunities.org/id/metropolitan-district-council/wolverhampton","719527","Water Plus","00120014_3007123011","-4,455.74","Water Charges","190532694","23/11/2018","Corporate Asset Management","Central Utilities to Recharge","R2400"
"Wolverhampton City Council","http://opendatacommunities.org/id/metropolitan-district-council/wolverhampton","719527","Water Plus","01895038_3006751841","116.56","Water Charges","190532697","23/11/2018","Housing Revenue Account","Amounts to be Settled with Wolverhampton Homes","R2400"
"Wolverhampton City Council","http://opendatacommunities.org/id/metropolitan-district-council/wolverhampton","719527","Water Plus","01948841_3005068838","88.66","Water Charges","190532703","23/11/2018","Corporate Asset Management","Central Utilities to Recharge","R2400"
"Wolverhampton City Council","http://opendatacommunities.org/id/metropolitan-district-council/wolverhampton","719527","Water Plus","01948841_3006453832","108.95","Water Charges","190532777","23/11/2018","Corporate Asset Management","Central Utilities to Recharge","R2400"
"Wolverhampton City Council","http://opendatacommunities.org/id/metropolitan-district-council/wolverhampton","719527","Water Plus","01948841_3006473108","119.22","Water Charges","190532780","23/11/2018","Corporate Asset Management","Central Utilities to Recharge","R2400"
"Wolverhampton City Council","http://opendatacommunities.org/id/metropolitan-district-council/wolverhampton","719527","Water Plus","01948841_3005092070","41.36","Water Charges","190532704","23/11/2018","Corporate Asset Management","Central Utilities to Recharge","R2400"
"Wolverhampton City Council","http://opendatacommunities.org/id/metropolitan-district-council/wolverhampton","719527","Water Plus","01948841_3006473213","173.87","Water Charges","190532781","23/11/2018","Corporate Asset Management","Central Utilities to Recharge","R2400"
"Wolverhampton City Council","http://opendatacommunities.org/id/metropolitan-district-council/wolverhampton","719527","Water Plus","01948841_3005064034","638.50","Water Charges","190532702","23/11/2018","Corporate Asset Management","Central Utilities to Recharge","R2400"
"Wolverhampton City Council","http://opendatacommunities.org/id/metropolitan-district-council/wolverhampton","719527","Water Plus","01948841_3006476719","16.61","Water Charges","190532788","23/11/2018","Corporate Asset Management","Central Utilities to Recharge","R2400"
"Wolverhampton City Council","http://opendatacommunities.org/id/metropolitan-district-council/wolverhampton","719527","Water Plus","01948841_3005502597","216.65","Water Charges","190532721","23/11/2018","Corporate Asset Management","Central Utilities to Recharge","R2400"
"Wolverhampton City Council","http://opendatacommunities.org/id/metropolitan-district-council/wolverhampton","719527","Water Plus","01948841_3005504670","167.10","Water Charges","190532722","23/11/2018","Corporate Asset Management","Central Utilities to Recharge","R2400"
"Wolverhampton City Council","http://opendatacommunities.org/id/metropolitan-district-council/wolverhampton","719527","Water Plus","01948841_3005512495","107.10","Water Charges","190532723","23/11/2018","Corporate Asset Management","Central Utilities to Recharge","R2400"
"Wolverhampton City Council","http://opendatacommunities.org/id/metropolitan-district-council/wolverhampton","719527","Water Plus","01948841_3005257908","382.86","Water Charges","190532717","23/11/2018","Corporate Asset Management","Central Utilities to Recharge","R2400"
"Wolverhampton City Council","http://opendatacommunities.org/id/metropolitan-district-council/wolverhampton","719527","Water Plus","01948841_3005895327","35.59","Water Charges","190532741","23/11/2018","Corporate Asset Management","Central Utilities to Recharge","R2400"
"Wolverhampton City Council","http://opendatacommunities.org/id/metropolitan-district-council/wolverhampton","719527","Water Plus","01948841_3005580059","416.58","Water Charges","190532728","23/11/2018","Corporate Asset Management","Central Utilities to Recharge","R2400"
"Wolverhampton City Council","http://opendatacommunities.org/id/metropolitan-district-council/wolverhampton","719527","Water Plus","01948841_3005578623","10,243.68","Water Charges","190532727","23/11/2018","Corporate Asset Management","Central Utilities to Recharge","R2400"
"Wolverhampton City Council","http://opendatacommunities.org/id/metropolitan-district-council/wolverhampton","719527","Water Plus","01948841_3005875741","429.48","Water Charges","190532740","23/11/2018","Corporate Asset Management","Central Utilities to Recharge","R2400"
"Wolverhampton City Council","http://opendatacommunities.org/id/metropolitan-district-council/wolverhampton","719527","Water Plus","01948841_3005583511","694.36","Water Charges","190532729","23/11/2018","Corporate Asset Management","Central Utilities to Recharge","R2400"
"Wolverhampton City Council","http://opendatacommunities.org/id/metropolitan-district-council/wolverhampton","719527","Water Plus","01948841_3005993922","1,448.26","Water Charges","190532748","23/11/2018","Corporate Asset Management","Central Utilities to Recharge","R2400"
"Wolverhampton City Council","http://opendatacommunities.org/id/metropolitan-district-council/wolverhampton","719527","Water Plus","01948841_3005909263","4,731.99","Water Charges","190532745","23/11/2018","Corporate Asset Management","Central Utilities to Recharge","R2400"
"Wolverhampton City Council","http://opendatacommunities.org/id/metropolitan-district-council/wolverhampton","719527","Water Plus","01948841_3006176898","62.23","Water Charges","190532756","23/11/2018","Corporate Asset Management","Central Utilities to Recharge","R2400"
"Wolverhampton City Council","http://opendatacommunities.org/id/metropolitan-district-council/wolverhampton","719527","Water Plus","01948841_3006199375","78.62","Water Charges","190532759","23/11/2018","Corporate Asset Management","Central Utilities to Recharge","R2400"
"Wolverhampton City Council","http://opendatacommunities.org/id/metropolitan-district-council/wolverhampton","719527","Water Plus","01948841_3006217276","44.70","Water Charges","190532763","23/11/2018","Corporate Asset Management","Central Utilities to Recharge","R2400"
"Wolverhampton City Council","http://opendatacommunities.org/id/metropolitan-district-council/wolverhampton","719527","Water Plus","01948841_3006305728","43.76","Water Charges","190532765","23/11/2018","Corporate Asset Management","Central Utilities to Recharge","R2400"
"Wolverhampton City Council","http://opendatacommunities.org/id/metropolitan-district-council/wolverhampton","719527","Water Plus","01948841_3006201876","127.58","Water Charges","190532761","23/11/2018","Corporate Asset Management","Central Utilities to Recharge","R2400"
"Wolverhampton City Council","http://opendatacommunities.org/id/metropolitan-district-council/wolverhampton","719527","Water Plus","01948841_3006317009","141.77","Water Charges","190532767","23/11/2018","Corporate Asset Management","Central Utilities to Recharge","R2400"
"Wolverhampton City Council","http://opendatacommunities.org/id/metropolitan-district-council/wolverhampton","719527","Water Plus","01948841_3006217268","86.14","Water Charges","190532762","23/11/2018","Corporate Asset Management","Central Utilities to Recharge","R2400"
"Wolverhampton City Council","http://opendatacommunities.org/id/metropolitan-district-council/wolverhampton","719527","Water Plus","01948841_3006339649","93.86","Water Charges","190532769","23/11/2018","Corporate Asset Management","Central Utilities to Recharge","R2400"
"Wolverhampton City Council","http://opendatacommunities.org/id/metropolitan-district-council/wolverhampton","719527","Water Plus","01948841_3006451821","34.66","Water Charges","190532772","23/11/2018","Estates and Valuations","Industrial Premises ; Loxdale Park","R2400"
"Wolverhampton City Council","http://opendatacommunities.org/id/metropolitan-district-council/wolverhampton","719527","Water Plus","01948841_3006451856","16.76","Water Charges","190532773","23/11/2018","Estates and Valuations","Industrial Premises ; Fordhouse Road","R2400"
"Wolverhampton City Council","http://opendatacommunities.org/id/metropolitan-district-council/wolverhampton","719527","Water Plus","01948841_3006314808","880.05","Water Charges","190532766","23/11/2018","Corporate Asset Management","Central Utilities to Recharge","R2400"
"Wolverhampton City Council","http://opendatacommunities.org/id/metropolitan-district-council/wolverhampton","719527","Water Plus","01948841_3006630866","389.67","Water Charges","190532803","23/11/2018","Corporate Asset Management","Central Utilities to Recharge","R2400"
"Wolverhampton City Council","http://opendatacommunities.org/id/metropolitan-district-council/wolverhampton","719527","Water Plus","01948841_3006519310","167.83","Water Charges","190532797","23/11/2018","Corporate Asset Management","Central Utilities to Recharge","R2400"
"Wolverhampton City Council","http://opendatacommunities.org/id/metropolitan-district-council/wolverhampton","719527","Water Plus","01948841_3006517717","21.90","Water Charges","190532795","23/11/2018","Corporate Asset Management","Central Utilities to Recharge","R2400"
"Wolverhampton City Council","http://opendatacommunities.org/id/metropolitan-district-council/wolverhampton","719527","Water Plus","01948841_3006711610","42.25","Water Charges","190532808","23/11/2018","Corporate Asset Management","Central Utilities to Recharge","R2400"
"Wolverhampton City Council","http://opendatacommunities.org/id/metropolitan-district-council/wolverhampton","719527","Water Plus","01948841_3006588304","74.28","Water Charges","190532800","23/11/2018","Corporate Asset Management","Central Utilities to Recharge","R2400"
"Wolverhampton City Council","http://opendatacommunities.org/id/metropolitan-district-council/wolverhampton","719527","Water Plus","01948841_3006849884","374.54","Water Charges","190532821","23/11/2018","Corporate Asset Management","Central Utilities to Recharge","R2400"
"Wolverhampton City Council","http://opendatacommunities.org/id/metropolitan-district-council/wolverhampton","719527","Water Plus","01948841_3006905881","179.56","Water Charges","190532826","23/11/2018","Corporate Asset Management","Central Utilities to Recharge","R2400"
"Wolverhampton City Council","http://opendatacommunities.org/id/metropolitan-district-council/wolverhampton","719527","Water Plus","01948841_3007250331","206.67","Water Charges","190532848","23/11/2018","Corporate Asset Management","Central Utilities to Recharge","R2400"
"Wolverhampton City Council","http://opendatacommunities.org/id/metropolitan-district-council/wolverhampton","719527","Water Plus","01948841_3007240891","241.82","Water Charges","190532847","23/11/2018","Corporate Asset Management","Central Utilities to Recharge","R2400"
"Wolverhampton City Council","http://opendatacommunities.org/id/metropolitan-district-council/wolverhampton","719527","Water Plus","01948841_3007026105","108.24","Water Charges","190532834","23/11/2018","Corporate Asset Management","Central Utilities to Recharge","R2400"
"Wolverhampton City Council","http://opendatacommunities.org/id/metropolitan-district-council/wolverhampton","719527","Water Plus","01948841_300675526X","101.04","Water Charges","190532864","23/11/2018","Schools","Dovecotes Primary School","R2400"
"Wolverhampton City Council","http://opendatacommunities.org/id/metropolitan-district-council/wolverhampton","719527","Water Plus","01948841_300702465X","269.21","Water Charges","190532867","23/11/2018","Corporate Asset Management","Central Utilities to Recharge","R2400"
"Wolverhampton City Council","http://opendatacommunities.org/id/metropolitan-district-council/wolverhampton","719527","Water Plus","01948841_300679088X","931.05","Water Charges","190532865","23/11/2018","Corporate Asset Management","Central Utilities to Recharge","R2400"
"Wolverhampton City Council","http://opendatacommunities.org/id/metropolitan-district-council/wolverhampton","719527","Water Plus","01948841_3200144092","58.30","Water Charges","190532856","23/11/2018","Corporate Asset Management","Central Utilities to Recharge","R2400"
"Wolverhampton City Council","http://opendatacommunities.org/id/metropolitan-district-council/wolverhampton","719527","Water Plus","01948841_3007822386","49.25","Water Charges","190532854","23/11/2018","Corporate Asset Management","Central Utilities to Recharge","R2400"
"Wolverhampton City Council","http://opendatacommunities.org/id/metropolitan-district-council/wolverhampton","719533","Georgina Davies","NEF Autumn 2018 Nov 18","714.00","TPP - Private Nursery Education Funding","190529919","21/11/2018","Early Years","Early Years Universal Entitlement for 3 and 4 Year Olds","R5035"
"Wolverhampton City Council","http://opendatacommunities.org/id/metropolitan-district-council/wolverhampton","719533","Georgina Davies","TFT Autumn 2018 Nov 18","440.16","TPP - Private Nursery Education Funding","190535418","30/11/2018","Early Years","Early Years Entitlement Funding for Disadvantaged 2 Year Olds","R5035"
"Wolverhampton City Council","http://opendatacommunities.org/id/metropolitan-district-council/wolverhampton","719543","ION Projects Limited","559","14.78","Construction and Conversion","130233928","14/11/2018","-","GF - Interchange - Ph2 Train Station/MSCP/Metro Extension","C1100"
"Wolverhampton City Council","http://opendatacommunities.org/id/metropolitan-district-council/wolverhampton","719543","ION Projects Limited","559","431,270.85","Construction and Conversion","130233928","14/11/2018","-","GF - Interchange - Ph2 Train Station/MSCP/Metro Extension","C1100"
"Wolverhampton City Council","http://opendatacommunities.org/id/metropolitan-district-council/wolverhampton","719556","Care and Independence Ltd","0000019699","270.00","Equipment - Purchase","130234051","29/11/2018","Older People Provider Services","ILS Stores","R4000"
"Wolverhampton City Council","http://opendatacommunities.org/id/metropolitan-district-council/wolverhampton","719556","Care and Independence Ltd","0000019699","12.50","Equipment - Purchase","130234051","29/11/2018","Older People Provider Services","ILS Stores","R4000"
"Wolverhampton City Council","http://opendatacommunities.org/id/metropolitan-district-council/wolverhampton","719556","Care and Independence Ltd","0000019409","323.00","Equipment - Purchase","130233929","21/11/2018","Older People Provider Services","ILS Stores","R4000"
"Wolverhampton City Council","http://opendatacommunities.org/id/metropolitan-district-council/wolverhampton","719556","Care and Independence Ltd","0000019409","12.50","Equipment - Purchase","130233929","21/11/2018","Older People Provider Services","ILS Stores","R4000"
"Wolverhampton City Council","http://opendatacommunities.org/id/metropolitan-district-council/wolverhampton","719556","Care and Independence Ltd","0000019660","159.00","Equipment - Purchase","130233930","29/11/2018","Older People Provider Services","ILS Stores","R4000"
"Wolverhampton City Council","http://opendatacommunities.org/id/metropolitan-district-council/wolverhampton","719556","Care and Independence Ltd","0000019660","12.50","Equipment - Purchase","130233930","29/11/2018","Older People Provider Services","ILS Stores","R4000"
"Wolverhampton City Council","http://opendatacommunities.org/id/metropolitan-district-council/wolverhampton","719556","Care and Independence Ltd","0000019579","149.00","Equipment - Purchase","130233128","23/11/2018","Older People Provider Services","ILS Stores","R4000"
"Wolverhampton City Council","http://opendatacommunities.org/id/metropolitan-district-council/wolverhampton","719556","Care and Independence Ltd","0000019579","12.50","Equipment - Purchase","130233128","23/11/2018","Older People Provider Services","ILS Stores","R4000"
"Wolverhampton City Council","http://opendatacommunities.org/id/metropolitan-district-council/wolverhampton","719556","Care and Independence Ltd","0000019699","220.00","Equipment - Purchase","130234051","29/11/2018","Older People Provider Services","ILS Stores","R4000"
"Wolverhampton City Council","http://opendatacommunities.org/id/metropolitan-district-council/wolverhampton","719556","Care and Independence Ltd","0000017328","12.50","Equipment - Purchase","130235775","23/11/2018","Independent Living Service","Independent Living Service","R4000"
"Wolverhampton City Council","http://opendatacommunities.org/id/metropolitan-district-council/wolverhampton","719556","Care and Independence Ltd","0000017328","323.00","Equipment - Purchase","130235775","23/11/2018","Independent Living Service","Independent Living Service","R4000"
"Wolverhampton City Council","http://opendatacommunities.org/id/metropolitan-district-council/wolverhampton","719559","Good Shepherd Ministry (New Contract)","0019","4,450.83","Grant Payments","190525175","07/11/2018","Housing Revenue Account","Single non statutory homelessness","R4700"
"Wolverhampton City Council","http://opendatacommunities.org/id/metropolitan-district-council/wolverhampton","719559","Good Shepherd Ministry (New Contract)","GSM3","3,966.78","Grant Payments","190525177","07/11/2018","Housing Revenue Account","Single non statutory homelessness","R4700"
"Wolverhampton City Council","http://opendatacommunities.org/id/metropolitan-district-council/wolverhampton","719562","Ashcroft Hollow Nursing Home","P190760 09121820181119","2,223.72","TPP - Nursing Care - Long Term","190530756","21/11/2018","Older People Care Purchasing","OP Care Purchasing (Spot Placements)","R5410"
